Workbook

Sheet Standard - P&L
B7: Profit & Loss Statement - Standard Scenario - Consolidated
B9: INSTRUCTIONS - HIDE THIS LINE BEFORE PRINT | C9: NY Budget | D9: New Projection | E9: New Projection | F9: New Projection | G9: New Projection | H9: New Projection | I9: New Projection | J9: New Projection | K9: New Projection | L9: New Projection
B10: For the period ended 30 June | C10: 2020 | D10: =C10+1 -> 2021 | E10: 2022 | F10: 2023 | G10: 2024 | H10: 2025 | I10: 2026 | J10: 2027 | K10: 2028 | L10: 2029
C11: $'000 | D11: $'000 | E11: $'000 | F11: $'000 | G11: $'000 | H11: $'000 | I11: $'000 | J11: $'000 | K11: $'000 | L11: $'000
B12: Revenue
B13: Rates & Annual Charges | C13: 59086.803 | D13: 60717.72307 | E13: 62389.41615 | F13: 64102.90156 | G13: 65859.22409 | H13: 67659.4547 | I13: 69504.69106 | J13: 71396.05834 | K13: 73334.7098 | L13: 75321.82754
B14: User Fees and Charges | C14: 41681.74825 | D14: 42875.17696 | E14: 44285.97538 | F14: 45742.22376 | G14: 47227.79836 | H14: 48408.49332 | I14: 49618.70565 | J14: 50859.17329 | K14: 52130.65262 | L14: 53433.91894
B15: Interest & Investment Revenue | C15: 1421.4132 | D15: 1259.633237 | E15: 1238.812798 | F15: 1295.344951 | G15: 1351.967571 | H15: 1440.166832 | I15: 1559.960329 | J15: 1670.846221 | K15: 1791.222126 | L15: 1914.582987
B16: Other Revenues | C16: 7083.982 | D16: 7261.08155 | E16: 7442.608589 | F16: 7628.673803 | G16: 7819.390649 | H16: 8014.875415 | I16: 8215.2473 | J16: 8420.628483 | K16: 8631.144195 | L16: 8846.9228
B17: Operating Grants and Contributions | C17: 12339.40586 | D17: 12647.89101 | E17: 12964.08828 | F17: 13288.19049 | G17: 13620.39525 | H17: 13960.90513 | I17: 14309.92776 | J17: 14667.67595 | K17: 15034.36785 | L17: 15410.22705
B18: Capital Grants and Contributions | C18: 5865.51 | D18: 5982.8202 | E18: 6102.476604 | F18: 6224.526136 | G18: 6349.016659 | H18: 6475.996992 | I18: 6605.516932 | J18: 6737.62727 | K18: 6872.379816 | L18: 7009.827412
B19: Gain on Sale of assets | C19: 250 | D19: 250 | E19: 250 | F19: 250 | G19: 250 | H19: 250 | I19: 250 | J19: 250 | K19: 250 | L19: 250
B20: Total Revenue | C20: =SUM(C13:C19) -> 127728.8623 | D20: 130994.326 | E20: 134673.3778 | F20: 138531.8607 | G20: 142477.7926 | H20: 146209.8924 | I20: 150064.049 | J20: 154002.0096 | K20: 158044.4764 | L20: 162187.3067
B22: Operating Expenses
B23: Employee Benefits & On-Costs | C23: 46765.95725 | D23: 48616.39615 | E23: 50288.73586 | F23: 51947.14946 | G23: 53044.32515 | H23: 54831.99472 | I23: 56385.12334 | J23: 58488.4857 | K23: 59288.9216 | L23: 61612.78037
B24: Borrowing Costs | C24: 767.3047516 | D24: 750.4095428 | E24: 657.830763 | F24: 576.5578615 | G24: 501.9167304 | H24: 468.5313146 | I24: 450.8440848 | J24: 432.4911502 | K24: 413.9254489 | L24: 389.7105482
B25: Materials & Contracts | C25: 40113.11048 | D25: 41615.93824 | E25: 42143.8367 | F25: 43225.93262 | G25: 44328.08093 | H25: 46186.28295 | I25: 46827.19003 | J25: 48047.86978 | K25: 49349.06652 | L25: 51182.79319
B26: Depreciation & Amortisation | C26: 15739.99532 | D26: 16014.77872 | E26: 16507.00932 | F26: 17183.09069 | G26: 17356.26949 | H26: 17535.56584 | I26: 17721.0974 | J26: 17912.98533 | K26: 18111.35433 | L26: 18316.33273
B27: Amortisation - intangibles | C27: 262.741512 | D27: 294.1932096 | E27: 321.4545677 | F27: 345.4161541 | G27: 366.7917358 | H27: 386.1536715 | I27: 403.9612271 | J27: 420.5832288 | K27: 436.3161863 | L27: 451.3987925
B28: Other | C28: 14393.3389 | D28: 14754.19737 | E28: 15123.05231 | F28: 15529.62861 | G28: 15939.36933 | H28: 16537.85356 | I28: 17001.2999 | J28: 17476.3324 | K28: 18013.24071 | L28: 18463.57173
B29: Total Operating Expenses | C29: =SUM(C23:C28) -> 118042.4482 | D29: =SUM(D23:D28) -> 122045.9132 | E29: =SUM(E23:E28) -> 125041.9195 | F29: 128807.7754 | G29: 131536.7534 | H29: 135946.3821 | I29: 138789.516 | J29: 142778.7476 | K29: 145612.8248 | L29: 150416.5874
B31: Operating Surplus / (Deficit) | C31: =C20-C29 -> 9686.414097 | D31: =D20-D29 -> 8948.41279 | E31: 9631.458287 | F31: 9724.085302 | G31: 10941.03921 | H31: 10263.51032 | I31: 11274.53305 | J31: 11223.26197 | K31: 12431.65161 | L31: =L20-L29 -> 11770.71938
B33: Other Comprehensive Income | C33: 0 | D33: 0 | E33: 0 | F33: 0 | G33: 0 | H33: 0 | I33: 0 | J33: 0 | K33: 0 | L33: 0
B35: Total Comprehensive Income | C35: =SUM(C31:C34) -> 9686.414097 | D35: =SUM(D31:D34) -> 8948.41279 | E35: 9631.458287 | F35: 9724.085302 | G35: 10941.03921 | H35: 10263.51032 | I35: 11274.53305 | J35: 11223.26197 | K35: 12431.65161 | L35: =SUM(L31:L34) -> 11770.71938
B37: Net Operating Result before Capital Grants | C37: =+C35-C18 -> 3820.904097 | D37: 2965.59259 | E37: 3528.981683 | F37: 3499.559165 | G37: 4592.022555 | H37: 3787.513324 | I37: 4669.016117 | J37: 4485.634701 | K37: 5559.271799 | L37: 4760.891969
B39: Adjustments for Underlying Result
B40: Gain on Sale of assets | C40: -250 | D40: -250 | E40: -250 | F40: -250 | G40: -250 | H40: -250 | I40: -250 | J40: -250 | K40: -250 | L40: -250
B41: Investment property fair value increases | C41: -786.675 | D41: -996.02325 | E41: -1025.903948 | F41: -1056.681066 | G41: -1088.381498 | H41: -1121.032943 | I41: -1154.663931 | J41: -1189.303849 | K41: -1224.982965 | L41: -1261.732453
B42: NAP Profit | C42: -4091.797097 | D42: -4194.629195 | E42: -4299.918294 | F42: -4407.451632 | G42: -4518.094617 | H42: -4631.115188 | I42: -4746.838324 | J42: -4865.114748 | K42: -5000.239054 | L42: -5177.459731
B43: Local election costs | C43: 0 | D43: 500 | E43: 0 | F43: 0 | G43: 0 | H43: 550 | I43: 0 | J43: 0 | K43: 0 | L43: 600
B44: NAP dividend | C44: 1984.861738 | D44: 2097.314597 | E44: 2149.959147 | F44: 2203.725816 | G44: 2259.047309 | H44: 2315.557594 | I44: 2373.419162 | J44: 2432.557374 | K44: 2500.119527 | L44: 2588.729866
B45: Underlying result | C45: =SUM(C37:C44) -> 677.293738 | D45: 122.254742 | E45: 103.1185885 | F45: -10.84771643 | G45: 994.5937486 | H45: 650.9227867 | I45: 890.9330238 | J45: 613.7734784 | K45: 1584.169307 | L45: =SUM(L37:L44) -> 1260.42965

Sheet Standard - balance sheet
B7: Balance Sheet - Standard Scenario - Consolidated
B8: ='Standard - P&L'!B9 -> INSTRUCTIONS - HIDE THIS LINE BEFORE PRINT | C8: New Projection | D8: New Projection | E8: New Projection | F8: New Projection | G8: New Projection | H8: New Projection | I8: New Projection | J8: New Projection | K8: New Projection | L8: New Projection
B10: As at 30 June | C10: 2020 | D10: ='Standard - P&L'!D10 -> 2021 | E10: ='Standard - P&L'!E10 -> 2022 | F10: ='Standard - P&L'!F10 -> 2023 | G10: ='Standard - P&L'!G10 -> 2024 | H10: ='Standard - P&L'!H10 -> 2025 | I10: ='Standard - P&L'!I10 -> 2026 | J10: ='Standard - P&L'!J10 -> 2027 | K10: ='Standard - P&L'!K10 -> 2028 | L10: ='Standard - P&L'!L10 -> 2029
C11: $'000 | D11: $'000 | E11: $'000 | F11: $'000 | G11: $'000 | H11: $'000 | I11: $'000 | J11: $'000 | K11: =J11 -> $'000 | L11: =K11 -> $'000
B12: ASSETS
B13: Current Assets
B14: Cash and Cash Equivalents | C14: 9144.329492 | D14: 8311.511918 | E14: 10572.79805 | F14: 12837.70283 | G14: 16365.67329 | H14: 21157.41318 | I14: 25592.84885 | J14: 30407.88504 | K14: 35342.31948 | L14: 41400.16356
B15: Investments | C15: 41241 | D15: 41241 | E15: 41241 | F15: 41241 | G15: 41241 | H15: 41241 | I15: 41241 | J15: 41241 | K15: 41241 | L15: 41241
B16: Receivables | C16: 11310.79571 | D16: 11624.0791 | E16: 11963.94798 | F16: 12313.33158 | G16: 12670.74177 | H16: 13002.88531 | I16: 13343.33245 | J16: 13692.29076 | K16: 14049.97303 | L16: 14416.59735
B17: Inventories | C17: 3875 | D17: 3875 | E17: 3875 | F17: 3875 | G17: 3875 | H17: 3875 | I17: 3875 | J17: 3875 | K17: 3875 | L17: 3875
B19: Total Current Assets | C19: 65571.1252 | D19: =SUM(D14:D17) -> 65051.59102 | E19: 67652.74603 | F19: 70267.03441 | G19: 74152.41506 | H19: 79276.29849 | I19: 84052.1813 | J19: 89216.1758 | K19: 94508.29251 | L19: 100932.7609
B21: Non Current Assets
B22: Investments | C22: 0 | D22: =C22 -> 0 | E22: 0 | F22: 0 | G22: 0 | H22: 0 | I22: 0 | J22: 0 | K22: 0 | L22: 0
B23: Receivables | C23: 0 | D23: 0 | E23: 0 | F23: 0 | G23: 0 | H23: 0 | I23: 0 | J23: 0 | K23: 0 | L23: 1
B24: Infrastructure, Property, Plant & Equipment | C24: 906558.7842 | D24: 912400.5327 | E24: 916748.0396 | F24: 920929.6854 | G24: 925460.9053 | H24: 930348.4231 | I24: 935599.1618 | J24: 941220.2473 | K24: 947219.0131 | L24: 953603.0051
B25: Inventories | C25: 16651 | D25: 16651 | E25: 16651 | F25: 16651 | G25: 16651 | H25: 16651 | I25: 16651 | J25: 16651 | K25: 16651 | L25: 16651
B26: Investment Properties | C26: 33200.775 | D26: 34196.79825 | E26: 35222.7022 | F26: 36279.38326 | G26: 37367.76476 | H26: 38488.7977 | I26: 39643.46164 | J26: 40832.76548 | K26: 42057.74845 | L26: 43319.4809
B27: Intangibles | C27: 1060.966048 | D27: 1187.022838 | E27: 1296.324521 | F27: 1392.433523 | G27: 1478.205072 | H27: 1555.928768 | I27: 1627.441842 | J27: 1694.219773 | K27: 1757.448774 | L27: 1818.0838
B28: Total Non Current Assets | C28: 957471.5252 | D28: =SUM(D22:D27) -> 964435.3538 | E28: 969918.0664 | F28: 975252.5022 | G28: 980957.8751 | H28: 987044.1496 | I28: 993521.0653 | J28: 1000398.233 | K28: 1007685.21 | L28: 1015392.57
B29: Total Assets | C29: 1023042.65 | D29: =D28+D19 -> 1029486.945 | E29: 1037570.812 | F29: 1045519.537 | G29: 1055110.29 | H29: 1066320.448 | I29: 1077573.247 | J29: 1089614.408 | K29: 1102193.503 | L29: 1116325.331
B31: LIABILITIES
B32: Current Liabilities
B33: Trade & Other Payables | C33: 7220.359886 | D33: 7490.868884 | E33: 7585.890606 | F33: 7780.667871 | G33: 7979.054568 | H33: 8313.530932 | I33: 8428.894205 | J33: 8648.61656 | K33: 8882.831974 | L33: 9212.902774
B34: Borrowings | C34: 3237.496221 | D34: 2410.536558 | E34: 2497.369896 | F34: 2013.929462 | G34: 652.4588597 | H34: 677.1915801 | I34: 702.8687402 | J34: 787.5808834 | K34: 521.0518083 | L34: 521.0518083
B35: Provisions | C35: 13443.90727 | D35: 13631.50855 | E35: 14073.09613 | F35: 14250.31385 | G35: 14339.54282 | H35: 15208.50373 | I35: 15318.47511 | J35: 15913.19436 | K35: 15594.86595 | L35: 17131.63644
B36: Other Current Liabilities | C36: 0 | D36: 0 | E36: 0 | F36: 0 | G36: 0 | H36: 0 | I36: 0 | J36: 0 | K36: 0 | L36: 1
B37: Total Current Liabilities | C37: 23901.76338 | D37: =SUM(D33:D36) -> 23532.91399 | E37: 24156.35663 | F37: 24044.91118 | G37: 22971.05625 | H37: 24199.22624 | I37: 24450.23805 | J37: 25349.3918 | K37: 24998.74974 | L37: =SUM(L33:L36) -> 26866.59103
B39: Non Current Liabilities
B40: Trade & Other Payables | C40: 3564 | D40: 3018.5 | E40: 2473 | F40: 1927.5 | G40: 1382 | H40: 836.5 | I40: 291 | J40: 0 | K40: 0 | L40: 0
B41: Borrowings | C41: 18650.13832 | D41: 16239.60176 | E41: 13742.23186 | F41: 11728.3024 | G41: 11075.84354 | H41: 10398.65196 | I41: 9695.783223 | J41: 8908.202339 | K41: 8387.150531 | L41: 7866.098723
B42: Provisions | C42: 810.0111313 | D42: 1630.778682 | E42: 2502.615207 | F42: 3398.129037 | G42: 4319.657148 | H42: 5260.826377 | I42: 6236.44877 | J42: 7233.775698 | K42: 8252.912459 | L42: 9267.231447
B43: Other Non-current Liabilities | C43: 0 | D43: 0 | E43: 0 | F43: 0 | G43: 0 | H43: 0 | I43: 0 | J43: 0 | K43: 0 | L43: 1
B44: Total Non Current Liabilities | C44: 23024.14945 | D44: =SUM(D40:D43) -> 20888.88044 | E44: 18717.84707 | F44: 17053.93144 | G44: 16777.50069 | H44: 16495.97834 | I44: 16223.23199 | J44: 16141.97804 | K44: =SUM(K40:K43) -> 16640.06299 | L44: =SUM(L40:L43) -> 17134.33017
B45: Total Liabilities | C45: 46925.91283 | D45: =D44+D37 -> 44421.79443 | E45: 42874.2037 | F45: 41098.84262 | G45: 39748.55694 | H45: 40695.20458 | I45: 40673.47004 | J45: 41491.36984 | K45: 41638.81273 | L45: =L44+L37 -> 44000.9212
B46: Net Assets | C46: 976116.7376 | D46: =D29-D45 -> 985065.1504 | E46: 994696.6087 | F46: 1004420.694 | G46: 1015361.733 | H46: 1025625.244 | I46: 1036899.777 | J46: 1048123.039 | K46: 1060554.69 | L46: =L29-L45 -> 1072324.41
B48: EQUITY
B49: Accumulated Surplus | C49: 607558.1857 | D49: 616505.5985 | E49: 626138.0568 | F49: 635862.1421 | G49: 646803.1813 | H49: 657065.6916 | I49: 668341.2246 | J49: 679564.4866 | K49: 691996.1382 | L49: 703764.8576
B50: Asset Revaluation Reserves | C50: 368559 | D50: 368559 | E50: 368559 | F50: 368559 | G50: 368559 | H50: 368559 | I50: 368559 | J50: 368559 | K50: 368559 | L50: 368559
B51: Total Equity | C51: 976117.1857 | D51: =SUM(D49:D50) -> 985064.5985 | E51: 994697.0568 | F51: 1004421.142 | G51: 1015362.181 | H51: 1025624.692 | I51: 1036900.225 | J51: 1048123.487 | K51: 1060555.138 | L51: 1072323.858

Sheet Standard - Cashflow
B7: Cashflow Statement - Standard Scenario - Consolidated
B10: For the period ended 30 June | C10: 2020 | D10: =C10+1 -> 2021 | E10: 2022 | F10: 2023 | G10: 2024 | H10: 2025 | I10: 2026 | J10: 2027 | K10: 2028 | L10: 2029
B11: Cash Flows from Operating Activities | C11: $'000 | D11: $'000 | E11: $'000 | F11: $'000 | G11: $'000 | H11: $'000 | I11: $'000 | J11: $'000 | K11: $'000 | L11: $'000
B12: Receipts:
B14: Rates & Annual Charges | C14: 58558.80804 | D14: 60404.43968 | E14: 62049.54727 | F14: 63753.51796 | G14: 65501.81391 | H14: 67327.31115 | I14: 69164.24393 | J14: 71047.10003 | K14: 72977.02753 | L14: 74954.20322
B15: User Charges & Fees | C15: 41681.74825 | D15: 42875.17696 | E15: 44285.97538 | F15: 45742.22376 | G15: 47227.79836 | H15: 48408.49332 | I15: 49618.70565 | J15: 50859.17329 | K15: 52130.65262 | L15: 53433.91894
B16: Interest & Investment Revenue Received | C16: 1421.4132 | D16: 1259.633237 | E16: 1238.812798 | F16: 1295.344951 | G16: 1351.967571 | H16: 1440.166832 | I16: 1559.960329 | J16: 1670.846221 | K16: 1791.222126 | L16: 1914.582987
B17: Grants & Contributions | C17: 16062.91586 | D17: 16445.87121 | E17: 16838.02809 | F17: 17239.60909 | G17: 17650.84222 | H17: 18071.96104 | I17: 18503.20479 | J17: 18944.81852 | K17: 19397.05328 | L17: 19860.16618
B18: Bonds & Deposits Received
B19: Other | C19: 6297.307 | D19: 6265.0583 | E19: 6416.704641 | F19: 6571.992738 | G19: 6731.009151 | H19: 6893.842472 | I19: 7060.583369 | J19: 7231.324634 | K19: 7406.16123 | L19: 7585.190346
B20: Payments:
B21: Employee Benefits & On-Costs | C21: -48815.24413 | D21: -49624.76497 | E21: -51602.15996 | F21: -53019.88101 | G21: -54055.08223 | H21: -56642.12486 | I21: -57470.71711 | J21: -60080.53188 | K21: -59989.72996 | L21: -64163.86985
B22: Materials & Contracts | C22: -40132.92909 | D22: -41340.94724 | E22: -41693.35842 | F22: -42875.20988 | G22: -43980.96763 | H22: -45975.25932 | I22: -46397.0533 | J22: -47976.59213 | K22: -49583.28194 | L22: -51513.86399
B23: Borrowing Costs | C23: -767.3047516 | D23: -750.4095428 | E23: -657.830763 | F23: -576.5578615 | G23: -501.9167304 | H23: -468.5313146 | I23: -450.8440848 | J23: -432.4911502 | K23: -413.9254489 | L23: -389.7105482
B24: Bonds & Deposits Refunded
B25: Other | C25: -10255.12792 | D25: -13287.44172 | E25: -13397.16066 | F25: -14085.61098 | G25: -14612.08176 | H25: -13339.64056 | I25: -15690.38581 | J25: -14434.79533 | K25: -16143.19316 | L25: -12699.25117
B26: Net Cash provided (or used in) Operating Activities | C26: 24051.58646 | D26: ='[2]cashflow note'!D62 -> 22246.61591 | E26: ='[2]cashflow note'!E62 -> 23478.55838 | F26: ='[2]cashflow note'!F62 -> 24045.42876 | G26: ='[2]cashflow note'!G62 -> 25313.38285 | H26: ='[2]cashflow note'!H62 -> 25716.21876 | I26: ='[2]cashflow note'!I62 -> 25897.69776 | J26: ='[2]cashflow note'!J62 -> 26828.85221 | K26: ='[2]cashflow note'!K62 -> 27571.98627 | L26: ='[2]cashflow note'!L62 -> 28981.36612
B29: Cash Flows from Investing Activities
B30: Receipts:
B31: Sale of Investment Securities
B32: Sale of Investment Property
B33: Sale of Real Estate Assets | C33: 0 | D33: 0 | E33: 0 | F33: 0 | G33: 0 | H33: 0 | I33: 0 | J33: 0 | K33: 0 | L33: 0
B34: Sale of Infrastructure, Property, Plant & Equipment | C34: 250 | D34: 250 | E34: 250 | F34: 250 | G34: 250 | H34: 250 | I34: 250 | J34: 250 | K34: 250 | L34: 250
B35: Payments:
B36: Purchase of Investment Securities
B37: Purchase of Investment Property
B38: Purchase of Infrastructure, Property, Plant & Equipment | C38: -20728.47537 | D38: -19671.68726 | E38: -18625.97944 | F38: -19091.62893 | G38: -19568.91965 | H38: -20058.14264 | I38: -20559.59621 | J38: -21073.58611 | K38: -21600.42577 | L38: -22140.43641
B39: Purchase of Intangible Assets | C39: -410 | D39: -420.25 | E39: -430.75625 | F39: -441.5251562 | G39: -452.5632852 | H39: -463.8773673 | I39: -475.4743015 | J39: -487.361159 | K39: -499.545188 | L39: -512.0338177
B40: Net Cash provided (or used in) Investing Activities | C40: -20888.47537 | D40: =SUM(D31:D39) -> -19841.93726 | E40: =SUM(E31:E39) -> -18806.73569 | F40: =SUM(F32:F39) -> -19283.15408 | G40: =SUM(G32:G39) -> -19771.48294 | H40: -20272.02001 | I40: -20785.07051 | J40: -21310.94727 | K40: -21849.97095 | L40: -22402.47023
B43: Cash Flows from Financing Activities
B44: Receipts:
B45: Proceeds from Borrowings & Advances | C45: 6500 | D45: 0 | E45: 0 | F45: 0 | G45: 0 | H45: 0 | I45: 0 | J45: 0 | K45: 0 | L45: 0
B46: Proceeds from Finance Leases
B47: Other Financing Activity Receipts
B49: Payments:
B50: Repayment of Borrowings & Advances | C50: -3301.813523 | D50: -3237.496221 | E50: -2410.536558 | F50: -2497.369896 | G50: -2013.929462 | H50: -652.4588597 | I50: -677.1915801 | J50: -702.8687402 | K50: -787.5808834 | L50: -521.0518083
B51: Net Cash Flow provided (used in) Financing Activities | C51: 3198.186477 | D51: =SUM(D45:D50) -> -3237.496221 | E51: -2410.536558 | F51: -2497.369896 | G51: -2013.929462 | H51: -652.4588597 | I51: -677.1915801 | J51: -702.8687402 | K51: -787.5808834 | L51: -521.0518083
B53: Net Increase/(Decrease) in Cash & Cash Equivalents | C53: 6361.297565 | D53: =+D26+D40+D51 -> -832.8175737 | E53: 2261.286128 | F53: 2264.904784 | G53: 3527.970455 | H53: 4791.739893 | I53: 4435.435671 | J53: 4815.036194 | K53: 4934.434438 | L53: 6057.844084
B55: plus: Cash - beginning of year | C55: 2783.031927 | D55: =C57 -> 9144.329492 | E55: 8311.511918 | F55: 10572.79805 | G55: 12837.70283 | H55: 16365.67329 | I55: 21157.41318 | J55: 25592.84885 | K55: =J57 -> 30407.88504 | L55: =K57 -> 35342.31948
B57: Cash - end of the year | C57: 9144.329492 | D57: =+D55+D53 -> 8311.511918 | E57: 10572.79805 | F57: 12837.70283 | G57: 16365.67329 | H57: 21157.41318 | I57: 25592.84885 | J57: =+J55+J53 -> 30407.88504 | K57: =+K55+K53 -> 35342.31948 | L57: =+L55+L53 -> 41400.16356
B58: plus: Investments - end of the year | C58: 41241 | D58: ='Standard - balance sheet'!D15+'Standard - balance sheet'!D22 -> 41241 | E58: ='Standard - balance sheet'!E15+'Standard - balance sheet'!E22 -> 41241 | F58: ='Standard - balance sheet'!F15+'Standard - balance sheet'!F22 -> 41241 | G58: ='Standard - balance sheet'!G15+'Standard - balance sheet'!G22 -> 41241 | H58: ='Standard - balance sheet'!H15+'Standard - balance sheet'!H22 -> 41241 | I58: ='Standard - balance sheet'!I15+'Standard - balance sheet'!I22 -> 41241 | J58: ='Standard - balance sheet'!J15+'Standard - balance sheet'!J22 -> 41241 | K58: ='Standard - balance sheet'!K15+'Standard - balance sheet'!K22 -> 41241 | L58: ='Standard - balance sheet'!L15+'Standard - balance sheet'!L22 -> 41241
B59: Total Cash & Investments - end of the year | C59: 50385.32949 | D59: =+D57+D58 -> 49552.51192 | E59: 51813.79805 | F59: 54078.70283 | G59: 57606.67329 | H59: 62398.41318 | I59: 66833.84885 | J59: 71648.88504 | K59: 76583.31948 | L59: 82641.16356
B61: Representing:
B62: - External Restrictions
B63: - Internal Restricitons
B64: - Unrestricted
B67: Less restricted Cash (NAL) | C67: -13296.45834 | D67: =[2]NAL!G24/1000 -> -13794.05286 | E67: =[2]NAL!H24/1000 -> -15841.79894 | F67: =[2]NAL!I24/1000 -> -17940.75635 | G67: =[2]NAL!J24/1000 -> -20092.41605 | H67: =[2]NAL!K24/1000 -> -22297.90134 | I67: =[2]NAL!L24/1000 -> -24558.4964 | J67: =[2]NAL!M24/1000 -> -26875.40906 | K67: =[2]NAL!N24/1000 -> -29256.99276 | L67: =[2]NAL!O24/1000 -> -31724.2234
B68: Cash, Cash Equivalents & Investments - end of the year | C68: 37088.87116 | D68: =D59+D67 -> 35758.45906 | E68: 35971.99911 | F68: 36137.94648 | G68: 37514.25724 | H68: 40100.51184 | I68: 42275.35245 | J68: 44773.47598 | K68: 47326.32672 | L68: 50916.94017

Sheet Standard - Ratios
B7: Ratios - Standard Scenario - Consolidated
C9: ='Standard - P&L'!C10 -> 2020 | D9: ='Standard - P&L'!D10 -> 2021 | E9: ='Standard - P&L'!E10 -> 2022 | F9: ='Standard - P&L'!F10 -> 2023 | G9: ='Standard - P&L'!G10 -> 2024 | H9: ='Standard - P&L'!H10 -> 2025 | I9: ='Standard - P&L'!I10 -> 2026 | J9: ='Standard - P&L'!J10 -> 2027 | K9: ='Standard - P&L'!K10 -> 2028 | L9: ='Standard - P&L'!L10 -> 2029
B11: Operating Performance | C11: =(C13-C14-C15)/(C13-C14) -> 0.02304316529 | D11: 0.01389377154 | E11: 0.01769965658 | F11: 0.01673944397 | G11: 0.02413852316 | H11: 0.01746480478 | I11: 0.02297967826 | J11: 0.02089030834 | K11: 0.0272836846 | L11: =(L13-L14-L15)/(L13-L14) -> 0.02114433165
B12: Operating Perfomance Min Target | C12: 0 | D12: 0 | E12: 0 | F12: 0 | G12: 0 | H12: 0 | I12: 0 | J12: 0 | K12: 0 | L12: 0
B13: Operating Revenue* | C13: ='Standard - P&L'!C20+'Standard - P&L'!C41-'Standard - P&L'!C19 -> 126692.1873 | D13: ='Standard - P&L'!D20+'Standard - P&L'!D41-'Standard - P&L'!D19 -> 129748.3028 | E13: ='Standard - P&L'!E20+'Standard - P&L'!E41-'Standard - P&L'!E19 -> 133397.4739 | F13: ='Standard - P&L'!F20+'Standard - P&L'!F41-'Standard - P&L'!F19 -> 137225.1796 | G13: ='Standard - P&L'!G20+'Standard - P&L'!G41-'Standard - P&L'!G19 -> 141139.4111 | H13: ='Standard - P&L'!H20+'Standard - P&L'!H41-'Standard - P&L'!H19 -> 144838.8594 | I13: ='Standard - P&L'!I20+'Standard - P&L'!I41-'Standard - P&L'!I19 -> 148659.3851 | J13: ='Standard - P&L'!J20+'Standard - P&L'!J41-'Standard - P&L'!J19 -> 152562.7057 | K13: ='Standard - P&L'!K20+'Standard - P&L'!K41-'Standard - P&L'!K19 -> 156569.4934 | L13: ='Standard - P&L'!L20+'Standard - P&L'!L41-'Standard - P&L'!L19 -> 160675.5743
B14: Capital Grants | C14: ='Standard - P&L'!C18 -> 5865.51 | D14: ='Standard - P&L'!D18 -> 5982.8202 | E14: ='Standard - P&L'!E18 -> 6102.476604 | F14: ='Standard - P&L'!F18 -> 6224.526136 | G14: ='Standard - P&L'!G18 -> 6349.016659 | H14: ='Standard - P&L'!H18 -> 6475.996992 | I14: ='Standard - P&L'!I18 -> 6605.516932 | J14: ='Standard - P&L'!J18 -> 6737.62727 | K14: ='Standard - P&L'!K18 -> 6872.379816 | L14: ='Standard - P&L'!L18 -> 7009.827412
B15: Operating Expenses | C15: ='Standard - P&L'!C29 -> 118042.4482 | D15: ='Standard - P&L'!D29 -> 122045.9132 | E15: ='Standard - P&L'!E29 -> 125041.9195 | F15: ='Standard - P&L'!F29 -> 128807.7754 | G15: ='Standard - P&L'!G29 -> 131536.7534 | H15: ='Standard - P&L'!H29 -> 135946.3821 | I15: ='Standard - P&L'!I29 -> 138789.516 | J15: ='Standard - P&L'!J29 -> 142778.7476 | K15: ='Standard - P&L'!K29 -> 145612.8248 | L15: ='Standard - P&L'!L29 -> 150416.5874
B17: Own Source Revenue | C17: =+C19/C20 -> 0.8563059314 | D17: 0.8564088253 | E17: 0.8570695206 | F17: 0.8578051297 | G17: 0.8585128579 | H17: 0.8588990399 | I17: 0.8593062612 | J17: 0.8596950472 | K17: 0.8600829115 | L17: =+L19/L20 -> 0.8604638287
B18: Own Source Revenue Min Target | C18: 0.6 | D18: 0.6 | E18: 0.6 | F18: 0.6 | G18: 0.6 | H18: 0.6 | I18: 0.6 | J18: 0.6 | K18: 0.6 | L18: 0.6
B19: Operating Revenue** | C19: ='Standard - P&L'!C13+'Standard - P&L'!C14+'Standard - P&L'!C16+'Standard - P&L'!C15+'Standard - P&L'!C41 -> 108487.2715 | D19: ='Standard - P&L'!D13+'Standard - P&L'!D14+'Standard - P&L'!D16+'Standard - P&L'!D15+'Standard - P&L'!D41 -> 111117.5916 | E19: ='Standard - P&L'!E13+'Standard - P&L'!E14+'Standard - P&L'!E16+'Standard - P&L'!E15+'Standard - P&L'!E41 -> 114330.909 | F19: ='Standard - P&L'!F13+'Standard - P&L'!F14+'Standard - P&L'!F16+'Standard - P&L'!F15+'Standard - P&L'!F41 -> 117712.463 | G19: ='Standard - P&L'!G13+'Standard - P&L'!G14+'Standard - P&L'!G16+'Standard - P&L'!G15+'Standard - P&L'!G41 -> 121169.9992 | H19: ='Standard - P&L'!H13+'Standard - P&L'!H14+'Standard - P&L'!H16+'Standard - P&L'!H15+'Standard - P&L'!H41 -> 124401.9573 | I19: ='Standard - P&L'!I13+'Standard - P&L'!I14+'Standard - P&L'!I16+'Standard - P&L'!I15+'Standard - P&L'!I41 -> 127743.9404 | J19: ='Standard - P&L'!J13+'Standard - P&L'!J14+'Standard - P&L'!J16+'Standard - P&L'!J15+'Standard - P&L'!J41 -> 131157.4025 | K19: ='Standard - P&L'!K13+'Standard - P&L'!K14+'Standard - P&L'!K16+'Standard - P&L'!K15+'Standard - P&L'!K41 -> 134662.7458 | L19: ='Standard - P&L'!L13+'Standard - P&L'!L14+'Standard - P&L'!L16+'Standard - P&L'!L15+'Standard - P&L'!L41 -> 138255.5198
B20: Total operating Revenue* | C20: =C13 -> 126692.1873 | D20: 129748.3028 | E20: 133397.4739 | F20: 137225.1796 | G20: 141139.4111 | H20: 144838.8594 | I20: 148659.3851 | J20: 152562.7057 | K20: 156569.4934 | L20: =L13 -> 160675.5743
B22: Capital Expenditure Ratio | C22: =C24/C25 -> 1.320928763 | D22: 1.231956088 | E22: 1.132410885 | F22: 1.114364974 | G22: 1.129685367 | H22: 1.145092132 | I22: 1.16055186 | J22: 1.17603658 | K22: 1.191522727 | L22: =L24/L25 -> 1.206990317
B23: Capital Expenditure Ratio Min Target | C23: 1 | D23: 1 | E23: 1 | F23: 1 | G23: 1 | H23: 1 | I23: 1 | J23: 1 | K23: 1 | L23: 1
B24: Capital Expenditure | C24: =-'Standard - Cashflow'!C38-'Standard - Cashflow'!C39 -> 21138.47537 | D24: =-'Standard - Cashflow'!D38-'Standard - Cashflow'!D39 -> 20091.93726 | E24: =-'Standard - Cashflow'!E38-'Standard - Cashflow'!E39 -> 19056.73569 | F24: =-'Standard - Cashflow'!F38-'Standard - Cashflow'!F39 -> 19533.15408 | G24: =-'Standard - Cashflow'!G38-'Standard - Cashflow'!G39 -> 20021.48294 | H24: =-'Standard - Cashflow'!H38-'Standard - Cashflow'!H39 -> 20522.02001 | I24: =-'Standard - Cashflow'!I38-'Standard - Cashflow'!I39 -> 21035.07051 | J24: =-'Standard - Cashflow'!J38-'Standard - Cashflow'!J39 -> 21560.94727 | K24: =-'Standard - Cashflow'!K38-'Standard - Cashflow'!K39 -> 22099.97095 | L24: =-'Standard - Cashflow'!L38-'Standard - Cashflow'!L39 -> 22652.47023
B25: Depreciation | C25: ='Standard - P&L'!C26+'Standard - P&L'!C27 -> 16002.73683 | D25: ='Standard - P&L'!D26+'Standard - P&L'!D27 -> 16308.97193 | E25: ='Standard - P&L'!E26+'Standard - P&L'!E27 -> 16828.46389 | F25: ='Standard - P&L'!F26+'Standard - P&L'!F27 -> 17528.50685 | G25: ='Standard - P&L'!G26+'Standard - P&L'!G27 -> 17723.06123 | H25: ='Standard - P&L'!H26+'Standard - P&L'!H27 -> 17921.71951 | I25: ='Standard - P&L'!I26+'Standard - P&L'!I27 -> 18125.05863 | J25: ='Standard - P&L'!J26+'Standard - P&L'!J27 -> 18333.56856 | K25: ='Standard - P&L'!K26+'Standard - P&L'!K27 -> 18547.67051 | L25: ='Standard - P&L'!L26+'Standard - P&L'!L27 -> 18767.73152
B27: Debt Service Coverage ratio | C27: =C28/(C29+C30) -> 4.267645116 | D27: =D28/(D29+D30) -> 4.204940896 | E27: 5.815056334 | F27: 5.994298321 | G27: 7.800450908 | H27: 16.85833961 | I27: 17.57874428 | J27: 17.35930022 | K27: 17.3455076 | L27: =L28/(L29+L30) -> 22.07195753
B28: EBITDA | C28: ='Standard - P&L'!C37+'Standard - P&L'!C26+'Standard - P&L'!C27+'Standard - P&L'!C41-'Standard - P&L'!C19-'Standard - P&L'!C15 -> 17365.55273 | D28: ='Standard - P&L'!D37+'Standard - P&L'!D26+'Standard - P&L'!D27+'Standard - P&L'!D41-'Standard - P&L'!D19-'Standard - P&L'!D15 -> 16768.90804 | E28: ='Standard - P&L'!E37+'Standard - P&L'!E26+'Standard - P&L'!E27+'Standard - P&L'!E41-'Standard - P&L'!E19-'Standard - P&L'!E15 -> 17842.72883 | F28: ='Standard - P&L'!F37+'Standard - P&L'!F26+'Standard - P&L'!F27+'Standard - P&L'!F41-'Standard - P&L'!F19-'Standard - P&L'!F15 -> 18426.04 | G28: ='Standard - P&L'!G37+'Standard - P&L'!G26+'Standard - P&L'!G27+'Standard - P&L'!G41-'Standard - P&L'!G19-'Standard - P&L'!G15 -> 19624.73472 | H28: ='Standard - P&L'!H37+'Standard - P&L'!H26+'Standard - P&L'!H27+'Standard - P&L'!H41-'Standard - P&L'!H19-'Standard - P&L'!H15 -> 18898.03306 | I28: ='Standard - P&L'!I37+'Standard - P&L'!I26+'Standard - P&L'!I27+'Standard - P&L'!I41-'Standard - P&L'!I19-'Standard - P&L'!I15 -> 19829.45049 | J28: ='Standard - P&L'!J37+'Standard - P&L'!J26+'Standard - P&L'!J27+'Standard - P&L'!J41-'Standard - P&L'!J19-'Standard - P&L'!J15 -> 19709.05319 | K28: ='Standard - P&L'!K37+'Standard - P&L'!K26+'Standard - P&L'!K27+'Standard - P&L'!K41-'Standard - P&L'!K19-'Standard - P&L'!K15 -> 20840.73722 | L28: ='Standard - P&L'!L37+'Standard - P&L'!L26+'Standard - P&L'!L27+'Standard - P&L'!L41-'Standard - P&L'!L19-'Standard - P&L'!L15 -> 20102.30805
B29: Principal repayments | C29: =-'Standard - Cashflow'!C50 -> 3301.813523 | D29: =-'Standard - Cashflow'!D50 -> 3237.496221 | E29: =-'Standard - Cashflow'!E50 -> 2410.536558 | F29: =-'Standard - Cashflow'!F50 -> 2497.369896 | G29: =-'Standard - Cashflow'!G50 -> 2013.929462 | H29: =-'Standard - Cashflow'!H50 -> 652.4588597 | I29: =-'Standard - Cashflow'!I50 -> 677.1915801 | J29: =-'Standard - Cashflow'!J50 -> 702.8687402 | K29: =-'Standard - Cashflow'!K50 -> 787.5808834 | L29: =-'Standard - Cashflow'!L50 -> 521.0518083
B30: Interest expense | C30: ='Standard - P&L'!C24 -> 767.3047516 | D30: ='Standard - P&L'!D24 -> 750.4095428 | E30: ='Standard - P&L'!E24 -> 657.830763 | F30: ='Standard - P&L'!F24 -> 576.5578615 | G30: ='Standard - P&L'!G24 -> 501.9167304 | H30: ='Standard - P&L'!H24 -> 468.5313146 | I30: ='Standard - P&L'!I24 -> 450.8440848 | J30: ='Standard - P&L'!J24 -> 432.4911502 | K30: ='Standard - P&L'!K24 -> 413.9254489 | L30: ='Standard - P&L'!L24 -> 389.7105482
B31: Debt Service Coverage ratio Min Target | C31: 2 | D31: 2 | E31: 2 | F31: 2 | G31: 2 | H31: 2 | I31: 2 | J31: 2 | K31: 2 | L31: 2
B33: Debt Service Ratio | C33: =(C36+C37)/(C34-C35) -> 0.03367731668 | D33: 0.03222146983 | E33: 0.02410438263 | F33: 0.02346498033 | G33: 0.01866487744 | H33: 0.008101813987 | I33: 0.007940900726 | J33: 0.007785765676 | K33: 0.008026249158 | L33: 0.005926905476
B34: Operating Revenue | C34: =C13 -> 126692.1873 | D34: 129748.3028 | E34: 133397.4739 | F34: 137225.1796 | G34: 141139.4111 | H34: 144838.8594 | I34: 148659.3851 | J34: 152562.7057 | K34: 156569.4934 | L34: 160675.5743
B35: Capital Grants | C35: 5865.51 | D35: 5982.8202 | E35: 6102.476604 | F35: 6224.526136 | G35: 6349.016659 | H35: 6475.996992 | I35: 6605.516932 | J35: 6737.62727 | K35: 6872.379816 | L35: 7009.827412
B36: Principal repayments | C36: =C29 -> 3301.813523 | D36: 3237.496221 | E36: 2410.536558 | F36: 2497.369896 | G36: 2013.929462 | H36: 652.4588597 | I36: 677.1915801 | J36: 702.8687402 | K36: 787.5808834 | L36: 521.0518083
B37: Interest expense | C37: 767.3047516 | D37: 750.4095428 | E37: 657.830763 | F37: 576.5578615 | G37: 501.9167304 | H37: 468.5313146 | I37: 450.8440848 | J37: 432.4911502 | K37: 413.9254489 | L37: 389.7105482
B39: Cash Expense Cover Ratio | C39: =C41/(C42/12) -> 5.85465081 | D39: 5.493572815 | E39: 5.664719836 | F39: 5.740096059 | G39: 6.002572094 | H39: 6.395572719 | I39: 6.645384808 | J39: 6.954667496 | K39: 7.240910852 | L39: =L41/(L42/12) -> 7.670440417
B40: Cash Expense Cover Ratio Min Target | C40: 3 | D40: 3 | E40: 3 | F40: 3 | G40: 3 | H40: 3 | I40: 3 | J40: 3 | K40: 3 | L40: 3
B41: Cash & Cash Equivalents | C41: ='Standard - Cashflow'!C59 -> 50385.32949 | D41: ='Standard - Cashflow'!D59 -> 49552.51192 | E41: ='Standard - Cashflow'!E59 -> 51813.79805 | F41: ='Standard - Cashflow'!F59 -> 54078.70283 | G41: ='Standard - Cashflow'!G59 -> 57606.67329 | H41: ='Standard - Cashflow'!H59 -> 62398.41318 | I41: ='Standard - Cashflow'!I59 -> 66833.84885 | J41: ='Standard - Cashflow'!J59 -> 71648.88504 | K41: ='Standard - Cashflow'!K59 -> 76583.31948 | L41: ='Standard - Cashflow'!L59 -> 82641.16356
B42: Total Expenses - Depreciation and Interest Cost | C42: =-SUM('Standard - Cashflow'!C21:C25)-'Standard - Cashflow'!C50 -> 103272.4194 | D42: =-SUM('Standard - Cashflow'!D21:D25)-'Standard - Cashflow'!D50 -> 108241.0597 | E42: =-SUM('Standard - Cashflow'!E21:E25)-'Standard - Cashflow'!E50 -> 109761.0464 | F42: =-SUM('Standard - Cashflow'!F21:F25)-'Standard - Cashflow'!F50 -> 113054.6296 | G42: =-SUM('Standard - Cashflow'!G21:G25)-'Standard - Cashflow'!G50 -> 115163.9778 | H42: =-SUM('Standard - Cashflow'!H21:H25)-'Standard - Cashflow'!H50 -> 117078.0149 | I42: =-SUM('Standard - Cashflow'!I21:I25)-'Standard - Cashflow'!I50 -> 120686.1919 | J42: =-SUM('Standard - Cashflow'!J21:J25)-'Standard - Cashflow'!J50 -> 123627.2792 | K42: =-SUM('Standard - Cashflow'!K21:K25)-'Standard - Cashflow'!K50 -> 126917.7114 | L42: =-SUM('Standard - Cashflow'!L21:L25)-'Standard - Cashflow'!L50 -> 129287.7474
B44: Rates and Annual Charges Outstanding | C44: =C45/C46 -> 0.02899972029 | D44: =D45/D46 -> 0.02882733141 | E44: 0.02889955296 | F44: 0.02890886822 | G44: 0.0288785842 | H44: 0.02889566846 | I44: 0.02889437362 | J44: 0.02888954209 | K44: 0.02889319473 | L44: 0.02889237015
B45: Rates, annual and extra charges outstanding | C45: 1713.50076 | D45: 1750.329925 | E45: 1803.026236 | F45: 1853.142334 | G45: 1901.921148 | H45: 1955.065171 | I45: 2008.294512 | J45: 2062.599433 | K45: 2118.87405 | L45: 2176.226122
B46: Rates, annual and extra charges collectible | C46: ='Standard - P&L'!C13 -> 59086.803 | D46: ='Standard - P&L'!D13 -> 60717.72307 | E46: ='Standard - P&L'!E13 -> 62389.41615 | F46: ='Standard - P&L'!F13 -> 64102.90156 | G46: ='Standard - P&L'!G13 -> 65859.22409 | H46: ='Standard - P&L'!H13 -> 67659.4547 | I46: ='Standard - P&L'!I13 -> 69504.69106 | J46: ='Standard - P&L'!J13 -> 71396.05834 | K46: ='Standard - P&L'!K13 -> 73334.7098 | L46: ='Standard - P&L'!L13 -> 75321.82754
B49: *Operating revenue excludes 'Investment property fair value increases' and 'Gain on sale of assets'
B50: **Operating revenue excludes all grants and contributions, 'Investment property fair value increases' and 'Gain on sale of assets'

Sheet Standard - SS7 Ratios
B7: Special Schedule 7 Ratios - Standard Scenario - Consolidated
C9: 2020 | D9: =C9+1 -> 2021 | E9: =D9+1 -> 2022 | F9: 2023 | G9: 2024 | H9: 2025 | I9: 2026 | J9: 2027 | K9: 2028 | L9: 2029
B11: Building and Infrastructure Renewals Ratio | C11: =C12/C13 -> 1.359822717 | D11: 1.235859676 | E11: 1.231979662 | F11: 1.216052944 | G11: 1.237027092 | H11: 1.258049248 | I11: 1.27911221 | J11: 1.300208849 | K11: 1.321332117 | L11: 1.342475055
B12: Asset Renewals (Building and Infrastructure) | C12: =C16 -> 13193 | D12: =D16 -> 13555.8075 | E12: 13928.59221 | F12: 14311.62849 | G12: 14705.19828 | H12: 15109.59123 | I12: 15525.10499 | J12: 15952.04537 | K12: 16390.72662 | L12: 16841.4716
B13: Depreciation, Amortisation & Impairment | C13: =C25 -> 9702 | D13: =D25 -> 10968.72708 | E13: 11305.86213 | F13: 11768.91892 | G13: 11887.5313 | H13: 12010.33366 | I13: 12137.40661 | J13: 12268.8331 | K13: 12404.69857 | L13: 12545.0909
B15: Numerator:
B16: Asset Renewals (Building & Infrastructure) | C16: =SUM(C17:C22) -> 13193 | D16: 13555.8075 | E16: 13928.59221 | F16: 14311.62849 | G16: 14705.19828 | H16: 15109.59123 | I16: 15525.10499 | J16: 15952.04537 | K16: 16390.72662 | L16: 16841.4716
B17: - Buildings & other structures | C17: 1118 | D17: =C17*1.0275 -> 1148.745 | E17: =D17*1.0275 -> 1180.335488 | F17: 1212.794713 | G17: 1246.146568 | H17: 1280.415599 | I17: 1315.627028 | J17: 1351.806771 | K17: 1388.981457 | L17: 1427.178447
B18: - Roads & bridges | C18: 7803 | D18: =C18*1.0275 -> 8017.5825 | E18: 8238.066019 | F18: 8464.612834 | G18: 8697.389687 | H18: 8936.567904 | I18: 9182.323521 | J18: 9434.837418 | K18: 9694.295447 | L18: 9960.888572
B19: - Footpaths | C19: 488 | D19: =C19*1.0275 -> 501.42 | E19: 515.20905 | F19: 529.3772989 | G19: 543.9351746 | H19: 558.8933919 | I19: 574.2629602 | J19: 590.0551916 | K19: 606.2817093 | L19: 622.9544564
B20: - Stormwater Drainage | C20: 2643 | D20: =C20*1.0275 -> 2715.6825 | E20: 2790.363769 | F20: 2867.098772 | G20: 2945.943989 | H20: 3026.957448 | I20: 3110.198778 | J20: 3195.729245 | K20: 3283.611799 | L20: 3373.911123
B21: - Other Infrastructure | C21: 560 | D21: =C21*1.0275 -> 575.4 | E21: 591.2235 | F21: 607.4821463 | G21: 624.1879053 | H21: 641.3530727 | I21: 658.9902822 | J21: 677.1125149 | K21: 695.7331091 | L21: 714.8657696
B22: - Other Open Space/Recreational Assets | C22: 581 | D22: =C22*1.0275 -> 596.9775 | E22: 613.3943813 | F22: 630.2627267 | G22: 647.5949517 | H22: 665.4038129 | I22: 683.7024177 | J22: 702.5042342 | K22: 721.8231007 | L22: 741.6732359
B24: Denominator:
B25: Depreciation, Amortisation & Impairment | C25: =SUM(C26:C33) -> 9702 | D25: 10968.72708 | E25: 11305.86213 | F25: 11768.91892 | G25: 11887.5313 | H25: 12010.33366 | I25: 12137.40661 | J25: 12268.8331 | K25: 12404.69857 | L25: 12545.0909
B26: - Buildings | C26: 5074 | D26: =$M26*'Standard - P&L'!D$26 -> 5736.496528 | E26: =$M26*'Standard - P&L'!E$26 -> 5912.813614 | F26: =$M26*'Standard - P&L'!F$26 -> 6154.986079 | G26: =$M26*'Standard - P&L'!G$26 -> 6217.018756 | H26: =$M26*'Standard - P&L'!H$26 -> 6281.242738 | I26: =$M26*'Standard - P&L'!I$26 -> 6347.700176 | J26: =$M26*'Standard - P&L'!J$26 -> 6416.434465 | K26: =$M26*'Standard - P&L'!K$26 -> 6487.490274 | L26: =$M26*'Standard - P&L'!L$26 -> 6560.913574 | M26: 0.3582001741
B27: - Other Structures | C27: 234 | D27: =$M27*'Standard - P&L'!D$26 -> 264.9469193 | E27: =$M27*'Standard - P&L'!E$26 -> 273.0903338 | F27: =$M27*'Standard - P&L'!F$26 -> 284.2753573 | G27: =$M27*'Standard - P&L'!G$26 -> 287.1404103 | H27: =$M27*'Standard - P&L'!H$26 -> 290.1066714 | I27: =$M27*'Standard - P&L'!I$26 -> 293.1760873 | J27: =$M27*'Standard - P&L'!J$26 -> 296.3506622 | K27: =$M27*'Standard - P&L'!K$26 -> 299.6324593 | L27: =$M27*'Standard - P&L'!L$26 -> 303.0236018 | M27: 0.01654390135
B28: - Roads | C28: 2690 | D28: =$M28*'Standard - P&L'!D$26 -> 3041.047926 | E28: =$M28*'Standard - P&L'!E$26 -> 3134.517643 | F28: =$M28*'Standard - P&L'!F$26 -> 3262.898802 | G28: =$M28*'Standard - P&L'!G$26 -> 3295.783742 | H28: =$M28*'Standard - P&L'!H$26 -> 3329.830343 | I28: =$M28*'Standard - P&L'!I$26 -> 3365.06095 | J28: =$M28*'Standard - P&L'!J$26 -> 3401.498568 | K28: =$M28*'Standard - P&L'!K$26 -> 3439.166876 | L28: =$M28*'Standard - P&L'!L$26 -> 3478.090245 | M28: 0.1898900995
B29: - Bridges | C29: 12 | D29: =$M29*'Standard - P&L'!D$26 -> 13.5676943 | E29: =$M29*'Standard - P&L'!E$26 -> 13.98471126 | F29: =$M29*'Standard - P&L'!F$26 -> 14.55748629 | G29: =$M29*'Standard - P&L'!G$26 -> 14.70420309 | H29: =$M29*'Standard - P&L'!H$26 -> 14.85610266 | I29: =$M29*'Standard - P&L'!I$26 -> 15.0132847 | J29: =$M29*'Standard - P&L'!J$26 -> 15.17585183 | K29: =$M29*'Standard - P&L'!K$26 -> 15.34390972 | L29: =$M29*'Standard - P&L'!L$26 -> 15.51756709 | M29: 0.0008471983621
B30: - Footpaths | C30: 119 | D30: =$M30*'Standard - P&L'!D$26 -> 134.1694214 | E30: =$M30*'Standard - P&L'!E$26 -> 138.2932558 | F30: =$M30*'Standard - P&L'!F$26 -> 143.9573644 | G30: =$M30*'Standard - P&L'!G$26 -> 145.4082305 | H30: =$M30*'Standard - P&L'!H$26 -> 146.9103485 | I30: =$M30*'Standard - P&L'!I$26 -> 148.4647042 | J30: =$M30*'Standard - P&L'!J$26 -> 150.0723126 | K30: =$M30*'Standard - P&L'!K$26 -> 151.7342184 | L30: =$M30*'Standard - P&L'!L$26 -> 153.4514968 | M30: 0.008377850469
B31: - Stormwater Drainage | C31: 188 | D31: =$M31*'Standard - P&L'!D$26 -> 212.5605441 | E31: =$M31*'Standard - P&L'!E$26 -> 219.0938098 | F31: =$M31*'Standard - P&L'!F$26 -> 228.0672852 | G31: =$M31*'Standard - P&L'!G$26 -> 230.3658484 | H31: =$M31*'Standard - P&L'!H$26 -> 232.7456083 | I31: =$M31*'Standard - P&L'!I$26 -> 235.2081269 | J31: =$M31*'Standard - P&L'!J$26 -> 237.7550121 | K31: =$M31*'Standard - P&L'!K$26 -> 240.387919 | L31: =$M31*'Standard - P&L'!L$26 -> 243.1085511 | M31: 0.01327277434
B32: - Other Open Space/Recreational Assets | C32: 1115 | D32: =$M32*'Standard - P&L'!D$26 -> 1261.041809 | E32: =$M32*'Standard - P&L'!E$26 -> 1299.801219 | F32: =$M32*'Standard - P&L'!F$26 -> 1353.037476 | G32: =$M32*'Standard - P&L'!G$26 -> 1366.673987 | H32: =$M32*'Standard - P&L'!H$26 -> 1380.792208 | I32: =$M32*'Standard - P&L'!I$26 -> 1395.401405 | J32: =$M32*'Standard - P&L'!J$26 -> 1410.511118 | K32: =$M32*'Standard - P&L'!K$26 -> 1426.131165 | L32: =$M32*'Standard - P&L'!L$26 -> 1442.271652 | M32: 0.0787423811
B33: - Other Infrastructure | C33: 270 | D33: =$M33*'Standard - P&L'!D$26 -> 304.8962414 | E33: =$M33*'Standard - P&L'!E$26 -> 314.2675392 | F33: =$M33*'Standard - P&L'!F$26 -> 327.1390669 | G33: =$M33*'Standard - P&L'!G$26 -> 330.4361194 | H33: =$M33*'Standard - P&L'!H$26 -> 333.8496403 | I33: =$M33*'Standard - P&L'!I$26 -> 337.38187 | J33: =$M33*'Standard - P&L'!J$26 -> 341.0351148 | K33: =$M33*'Standard - P&L'!K$26 -> 344.811749 | L33: =$M33*'Standard - P&L'!L$26 -> 348.714216 | M33: 0.01903842986
B35: Infrastructure Backlog Ratio | C35: =C36/C37 -> 0.01892672074 | D35: 0.01914535976 | E35: 0.01957856703 | F35: 0.01959932509 | G35: 0.01837881819 | H35: 0.01827863843 | I35: 0.01867589719 | J35: 0.01907488236 | K35: 0.01947531778 | L35: 0.0198769241
B36: Estimated Cost to bring Assets to a Satisfactory Condition | C36: =C40 -> 14422.33333 | D36: =D40 -> 14682.9475 | E36: =E40 -> 15086.72856 | F36: 15171.61359 | G36: 14296.83297 | H36: 14293.99587 | I36: 14687.08076 | J36: 15090.97548 | K36: 15505.9773 | L36: 15932.39168
B37: Total (written down) value of Infrastructure, Building, Other Structure & Depreciable Land Improvement Assets | C37: =C49 -> 762009.0946 | D37: =D49 -> 766919.3834 | E37: 770573.6857 | F37: 774088.5732 | G37: 777897.2955 | H37: 782005.5047 | I37: 786419.0195 | J37: 791143.8298 | K37: 796186.0997 | L37: 801552.172
B39: Numerator:
B40: Estimated Cost to bring Assets to a Satisfactory Condition | C40: =SUM(C41:C46) -> 14422.33333 | D40: =SUM(D41:D46) -> 14682.9475 | E40: 15086.72856 | F40: 15171.61359 | G40: 14296.83297 | H40: 14293.99587 | I40: 14687.08076 | J40: 15090.97548 | K40: 15505.9773 | L40: 15932.39168
B41: - Roads | C41: 11320.66667 | D41: =C41*1.0275 -> 11631.985 | E41: =D41*1.0275 -> 11951.86459 | F41: =E41*1.0275-243-87 -> 11950.54086 | G41: =F41*1.0275-950-342 -> 10987.18074 | H41: =G41*1.0275-396 -> 10893.32821 | I41: 11192.89473 | J41: 11500.69934 | K41: 11816.96857 | L41: 12141.93521
B42: - Other Structures | C42: 2.666666667 | D42: =C42*1.0275 -> 2.74 | E42: 2.81535 | F42: 2.892772125 | G42: 2.972323358 | H42: 3.054062251 | I42: 3.138048963 | J42: 3.224345309 | K42: 3.313014805 | L42: 3.404122712
B43: - Stormwater Drainage | C43: 1006 | D43: =C43*1.0275 -> 1033.665 | E43: 1062.090788 | F43: 1091.298284 | G43: 1121.308987 | H43: 1152.144984 | I43: 1183.828971 | J43: 1216.384268 | K43: 1249.834835 | L43: 1284.205293
B44: - Other Infrastructure | C44: 839.3333333 | D44: =C44*1.0275 -> 862.415 | E44: 886.1314125 | F44: 910.5000263 | G44: 935.5387771 | H44: 961.2660934 | I44: 987.700911 | J44: 1014.862686 | K44: 1042.77141 | L44: 1071.447624
B45: - Other Open Space/Recreational Assets | C45: =293-51 -> 242 | D45: =C45*1.0275-51 -> 197.655 | E45: =D45*1.0275 -> 203.0905125 | F45: 208.6755016 | G45: 214.4140779 | H45: 220.310465 | I45: 226.3690028 | J45: 232.5941504 | K45: 238.9904895 | L45: 245.562728
B46: - Buildings | C46: =1096.66666666667-85 -> 1011.666667 | D46: =C46*1.0275-85 -> 954.4875 | E46: =D46*1.0275 -> 980.7359063 | F46: 1007.706144 | G46: 1035.418063 | H46: 1063.892059 | I46: 1093.149091 | J46: 1123.210691 | K46: 1154.098985 | L46: 1185.836707
B48: Denominator:
B49: Net carrying amount of infrastructure assets | C49: =SUM(C50:C57) -> 762009.0946 | D49: =SUM(D50:D57) -> 766919.3834 | E49: 770573.6857 | F49: 774088.5732 | G49: 777897.2955 | H49: 782005.5047 | I49: 786419.0195 | J49: 791143.8298 | K49: 796186.0997 | L49: 801552.172
B50: - Buildings | C50: =$M50*'Standard - balance sheet'!C$24 -> 90274.13296 | D50: =$M50*'Standard - balance sheet'!D$24 -> 90855.84789 | E50: =$M50*'Standard - balance sheet'!E$24 -> 91288.76788 | F50: =$M50*'Standard - balance sheet'!F$24 -> 91705.1716 | G50: =$M50*'Standard - balance sheet'!G$24 -> 92156.38552 | H50: =$M50*'Standard - balance sheet'!H$24 -> 92643.07921 | I50: =$M50*'Standard - balance sheet'!I$24 -> 93165.94203 | J50: =$M50*'Standard - balance sheet'!J$24 -> 93725.68358 | K50: =$M50*'Standard - balance sheet'!K$24 -> 94323.03412 | L50: =$M50*'Standard - balance sheet'!L$24 -> 94958.74506 | M50: 0.09957890711
B51: - Other Structures | C51: =$M51*'Standard - balance sheet'!C$24 -> 3436.805516 | D51: =$M51*'Standard - balance sheet'!D$24 -> 3458.95185 | E51: =$M51*'Standard - balance sheet'!E$24 -> 3475.433446 | F51: =$M51*'Standard - balance sheet'!F$24 -> 3491.286255 | G51: =$M51*'Standard - balance sheet'!G$24 -> 3508.464315 | H51: =$M51*'Standard - balance sheet'!H$24 -> 3526.993117 | I51: =$M51*'Standard - balance sheet'!I$24 -> 3546.898906 | J51: =$M51*'Standard - balance sheet'!J$24 -> 3568.208696 | K51: =$M51*'Standard - balance sheet'!K$24 -> 3590.95029 | L51: =$M51*'Standard - balance sheet'!L$24 -> 3615.152293 | M51: 0.003791045408
B52: - Roads | C52: =$M52*'Standard - balance sheet'!C$24 -> 407593.2796 | D52: =$M52*'Standard - balance sheet'!D$24 -> 410219.7584 | E52: =$M52*'Standard - balance sheet'!E$24 -> 412174.4188 | F52: =$M52*'Standard - balance sheet'!F$24 -> 414054.5073 | G52: =$M52*'Standard - balance sheet'!G$24 -> 416091.766 | H52: =$M52*'Standard - balance sheet'!H$24 -> 418289.218 | I52: =$M52*'Standard - balance sheet'!I$24 -> 420649.9759 | J52: =$M52*'Standard - balance sheet'!J$24 -> 423177.2435 | K52: =$M52*'Standard - balance sheet'!K$24 -> 425874.3181 | L52: =$M52*'Standard - balance sheet'!L$24 -> 428744.5922 | M52: 0.4496049089
B53: - Bridges | C53: =$M53*'Standard - balance sheet'!C$24 -> 11417.75933 | D53: =$M53*'Standard - balance sheet'!D$24 -> 11491.3339 | E53: =$M53*'Standard - balance sheet'!E$24 -> 11546.08908 | F53: =$M53*'Standard - balance sheet'!F$24 -> 11598.7553 | G53: =$M53*'Standard - balance sheet'!G$24 -> 11655.82427 | H53: =$M53*'Standard - balance sheet'!H$24 -> 11717.38068 | I53: =$M53*'Standard - balance sheet'!I$24 -> 11783.51172 | J53: =$M53*'Standard - balance sheet'!J$24 -> 11854.30713 | K53: =$M53*'Standard - balance sheet'!K$24 -> 11929.85928 | L53: =$M53*'Standard - balance sheet'!L$24 -> 12010.2632 | M53: 0.01259461551
B54: - Footpaths | C54: =$M54*'Standard - balance sheet'!C$24 -> 28872.45547 | D54: =$M54*'Standard - balance sheet'!D$24 -> 29058.50587 | E54: =$M54*'Standard - balance sheet'!E$24 -> 29196.96705 | F54: =$M54*'Standard - balance sheet'!F$24 -> 29330.14582 | G54: =$M54*'Standard - balance sheet'!G$24 -> 29474.45796 | H54: =$M54*'Standard - balance sheet'!H$24 -> 29630.11763 | I54: =$M54*'Standard - balance sheet'!I$24 -> 29797.34531 | J54: =$M54*'Standard - balance sheet'!J$24 -> 29976.36794 | K54: =$M54*'Standard - balance sheet'!K$24 -> 30167.4191 | L54: =$M54*'Standard - balance sheet'!L$24 -> 30370.73909 | M54: 0.03184840958
B55: - Stormwater Drainage | C55: =$M55*'Standard - balance sheet'!C$24 -> 193092.212 | D55: =$M55*'Standard - balance sheet'!D$24 -> 194336.4735 | E55: =$M55*'Standard - balance sheet'!E$24 -> 195262.4694 | F55: =$M55*'Standard - balance sheet'!F$24 -> 196153.1378 | G55: =$M55*'Standard - balance sheet'!G$24 -> 197118.2636 | H55: =$M55*'Standard - balance sheet'!H$24 -> 198159.2789 | I55: =$M55*'Standard - balance sheet'!I$24 -> 199277.6584 | J55: =$M55*'Standard - balance sheet'!J$24 -> 200474.9198 | K55: =$M55*'Standard - balance sheet'!K$24 -> 201752.6251 | L55: =$M55*'Standard - balance sheet'!L$24 -> 203112.3815 | M55: 0.2129946953
B56: - Other Open Space/Recreational Assets | C56: =$M56*'Standard - balance sheet'!C$24 -> 21523.29005 | D56: =$M56*'Standard - balance sheet'!D$24 -> 21661.98337 | E56: =$M56*'Standard - balance sheet'!E$24 -> 21765.20078 | F56: =$M56*'Standard - balance sheet'!F$24 -> 21864.48036 | G56: =$M56*'Standard - balance sheet'!G$24 -> 21972.05944 | H56: =$M56*'Standard - balance sheet'!H$24 -> 22088.09766 | I56: =$M56*'Standard - balance sheet'!I$24 -> 22212.75937 | J56: =$M56*'Standard - balance sheet'!J$24 -> 22346.21377 | K56: =$M56*'Standard - balance sheet'!K$24 -> 22488.63495 | L56: =$M56*'Standard - balance sheet'!L$24 -> 22640.20208 | M56: 0.02374174783
B57: - Other Infrastructure | C57: =$M57*'Standard - balance sheet'!C$24 -> 5799.159621 | D57: =$M57*'Standard - balance sheet'!D$24 -> 5836.528662 | E57: =$M57*'Standard - balance sheet'!E$24 -> 5864.339199 | F57: =$M57*'Standard - balance sheet'!F$24 -> 5891.08874 | G57: =$M57*'Standard - balance sheet'!G$24 -> 5920.074469 | H57: =$M57*'Standard - balance sheet'!H$24 -> 5951.339398 | I57: =$M57*'Standard - balance sheet'!I$24 -> 5984.927812 | J57: =$M57*'Standard - balance sheet'!J$24 -> 6020.885295 | K57: =$M57*'Standard - balance sheet'!K$24 -> 6059.258759 | L57: =$M57*'Standard - balance sheet'!L$24 -> 6100.096473 | M57: 0.006396893089
B59: Asset Maintanenace Ratio | C59: =C60/C61 -> 0.8745445161 | D59: 0.9027838375 | E59: 0.9203256084 | F59: 0.9433700769 | G59: 0.9603174755 | H59: 0.9913342442 | I59: 1.007006274 | J59: 1.033375288 | K59: 1.046842287 | L59: 1.079974819
B60: Actual Asset Maintenance | C60: =C64 -> 10532.13961 | D60: =D64 -> 10942.28498 | E60: 11208.05394 | F60: 11541.10215 | G60: 11806.24049 | H60: 12251.92841 | I60: 12515.86057 | J60: 12920.75967 | K60: 13172.56592 | L60: 13681.06658
B61: Required Asset Maintenance | C61: =C70 -> 12043 | D61: =D70 -> 12120.60355 | E61: 12178.35714 | F61: 12233.90738 | G61: 12294.10147 | H61: 12359.02873 | I61: 12428.78113 | J61: 12503.45332 | K61: 12583.14273 | L61: 12667.9496
B63: Numerator:
B64: Actual Asset Maintenance | C64: =C66*C67 -> 10532.13961 | D64: 10942.28498 | E64: 11208.05394 | F64: 11541.10215 | G64: 11806.24049 | H64: 12251.92841 | I64: 12515.86057 | J64: 12920.75967 | K64: 13172.56592 | L64: 13681.06658
C66: 84257.11686 | D66: 87538.27987 | E66: 89664.43154 | F66: 92328.81718 | G66: 94449.9239 | H66: 98015.42724 | I66: 100126.8845 | J66: 103366.0774 | K66: 105380.5274 | L66: 109448.5326 | M66: <<< total salaries and materials (not including NAP)
C67: 0.125 | D67: 0.125 | E67: 0.125 | F67: 0.125 | G67: 0.125 | H67: 0.125 | I67: 0.125 | J67: 0.125 | K67: 0.125 | L67: 0.125 | M67: <<< per centage for asset maintenance
B69: Denominator:
B70: Required Asset Maintenance | C70: =SUM(C71:C76) -> 12043 | D70: =SUM(D71:D76) -> 12120.60355 | E70: 12178.35714 | F70: 12233.90738 | G70: 12294.10147 | H70: 12359.02873 | I70: 12428.78113 | J70: 12503.45332 | K70: 12583.14273 | L70: 12667.9496
B71: - Roads | C71: 5168 | D71: =D52*$M$71 -> 5201.301929 | E71: 5226.085668 | F71: 5249.923885 | G71: 5275.754912 | H71: 5303.617079 | I71: 5333.549851 | J71: 5365.593851 | K71: 5399.790885 | L71: 5436.18397 | M71: =C71/C52 -> 0.01267930621
B72: - Other structures | C72: 202 | D72: =D51*$M$72 -> 203.3016621 | E72: 204.2703763 | F72: 205.2021333 | G72: 206.2117825 | H72: 207.3008224 | I72: 208.4707953 | J72: 209.7232891 | K72: 211.0599379 | L72: 212.482423 | M72: =C72/C51 -> 0.05877551088
B73: - Stormwater Drainage | C73: 1220 | D73: =D55*$M$73 -> 1227.861524 | E73: 1233.712174 | F73: 1239.339617 | G73: 1245.437498 | H73: 1252.014868 | I73: 1259.081041 | J73: 1266.645607 | K73: 1274.718437 | L73: 1283.309683 | M73: =C73/C55 -> 0.006318224786
B74: - Other infrastrcuture | C74: 35 | D74: =D57*$M$74 -> 35.22553551 | E74: 35.39338204 | F74: 35.55482507 | G74: 35.7297643 | H74: 35.91845932 | I74: 36.1211774 | J74: 36.33819365 | K74: 36.56979121 | L74: 36.81626141 | M74: =C74/C57 -> 0.006035357239
B75: - Other Open Space/Recreational Assets | C75: 3843 | D75: =D56*$M$75 -> 3867.763799 | E75: 3886.193348 | F75: 3903.919793 | G75: 3923.12812 | H75: 3943.846833 | I75: 3966.105278 | J75: 3989.933663 | K75: 4015.363075 | L75: 4042.425502 | M75: =C75/C56 -> 0.1785507695
B76: - Buidlings | C76: 1575 | D76: =D50*$M$76 -> 1585.149098 | E76: 1592.702192 | F76: 1599.967128 | G76: 1607.839394 | H76: 1616.330669 | I76: 1625.452983 | J76: 1635.218714 | K76: 1645.640605 | L76: 1656.731763 | M76: =C76/C50 -> 0.01744685823

Sheet Standard - Graphs
B7: Graphs - Standard Scenario - Consolidated
B72: Special Schedule 7 Graphs - Standard Scenario - Consolidated

Sheet Strategic - P&L
B7: Profit & Loss Statement - Strategic Scenario - Consolidated
B9: For the period ended 30 June | C9: 2020 | D9: =C9+1 -> 2021 | E9: 2022 | F9: 2023 | G9: 2024 | H9: 2025 | I9: 2026 | J9: 2027 | K9: 2028 | L9: 2029
C10: $'000 | D10: $'000 | E10: $'000 | F10: $'000 | G10: $'000 | H10: $'000 | I10: $'000 | J10: $'000 | K10: $'000 | L10: $'000
B11: Revenue
B12: Rates & Annual Charges | C12: 61105.82902 | D12: 65048.11326 | E12: 69258.52124 | F12: 73756.47356 | G12: 78562.83013 | H12: 83699.99772 | I12: 89192.04552 | J12: 91575.59666 | K12: 94018.73657 | L12: 96522.95499
B13: User Fees and Charges | C13: 41681.74825 | D13: 42875.17696 | E13: 44285.97538 | F13: 45742.22376 | G13: 47227.79836 | H13: 48408.49332 | I13: 49618.70565 | J13: 50859.17329 | K13: 52130.65262 | L13: 53433.91894
B14: Interest & Investment Revenue | C14: 1421.4132 | D14: 1229.559798 | E14: 1209.9643 | F14: 1265.420378 | G14: 1307.496202 | H14: 1355.208252 | I14: 1441.257102 | J14: 1474.154657 | K14: 1517.88623 | L14: 1531.220877
B15: Other Revenues | C15: 7083.982 | D15: 7261.08155 | E15: 7442.608589 | F15: 7628.673803 | G15: 7819.390649 | H15: 8014.875415 | I15: 8215.2473 | J15: 8420.628483 | K15: 8631.144195 | L15: 8846.9228
B16: Operating Grants and Contributions | C16: 12339.40586 | D16: 12647.89101 | E16: 12964.08828 | F16: 13288.19049 | G16: 13620.39525 | H16: 13960.90513 | I16: 14309.92776 | J16: 14667.67595 | K16: 15034.36785 | L16: 15410.22705
B17: Capital Grants and Contributions | C17: 5865.51 | D17: 5982.8202 | E17: 6102.476604 | F17: 6224.526136 | G17: 6349.016659 | H17: 6475.996992 | I17: 6605.516932 | J17: 6737.62727 | K17: 6872.379816 | L17: 7009.827412
B18: Gain on Sale of assets | C18: 250 | D18: 250 | E18: 250 | F18: 250 | G18: 250 | H18: 250 | I18: 250 | J18: 250 | K18: 250 | L18: 250
B19: Total Revenue | C19: =SUM(C12:C18) -> 129747.8883 | D19: =SUM(D12:D18) -> 135294.6428 | E19: 141513.6344 | F19: 148155.5081 | G19: 155136.9273 | H19: 162165.4768 | I19: 169632.7003 | J19: 173984.8563 | K19: 178455.1673 | L19: 183005.0721
B21: Operating Expenses
B22: Employee Benefits & On-Costs | C22: 47967.32708 | D22: 49325.27033 | E22: 51761.44521 | F22: 55087.5861 | G22: 58404.15713 | H22: 61140.22111 | I22: 64096.92928 | J22: 67381 | K22: 70171.81559 | L22: 72887
B23: Borrowing Costs | C23: 1317.304752 | D23: 1822.909543 | E23: 2173.883395 | F23: 2408.385347 | G23: 2725.989658 | H23: 2903.599684 | I23: 2723.574563 | J23: 2692.883737 | K23: 2500.441683 | L23: 2302.350429
B24: Materials & Contracts | C24: 40113.11048 | D24: 41615.93824 | E24: 42143.8367 | F24: 43225.93262 | G24: 44327.36843 | H24: 46186.55264 | I24: 46828.44146 | J24: 48048 | K24: 49349.12068 | L24: 51183
B25: Depreciation & Amortisation | C25: 16293.38865 | D25: 16822.60417 | E25: 17952.89961 | F25: 18245.53124 | G25: 18525.19708 | H25: 19264.5816 | I25: 19582.04413 | J25: 19836.45119 | K25: 20144.207 | L25: 20395.31042
B26: Amortisation - intangibles | C26: 262.741512 | D26: 294.1932096 | E26: 321.4545677 | F26: 345.4161541 | G26: 366.7917358 | H26: 386.1536715 | I26: 403.9612271 | J26: 420.5832288 | K26: 436.3161863 | L26: 451.3987925
B27: Other | C27: 14394.3389 | D27: 14754.19737 | E27: 15123.05231 | F27: 15501.12861 | G27: 15938.65683 | H27: 16337.12325 | I27: 16745.55133 | J27: 17164.19012 | K27: 17593.29487 | L27: 18034
B28: Total Operating Expenses | C28: =SUM(C22:C27) -> 120348.2114 | D28: =SUM(D22:D27) -> 124635.1129 | E28: =SUM(E22:E27) -> 129476.5718 | F28: 134813.9801 | G28: 140288.1609 | H28: 146218.232 | I28: 150380.502 | J28: 155543.1083 | K28: 160195.196 | L28: 165253.0596
B30: Operating Surplus / (Deficit) | C30: =C19-C28 -> 9399.676951 | D30: =D19-D28 -> 10659.5299 | E30: 12037.06261 | F30: 13341.52805 | G30: 14848.76639 | H30: 15947.24487 | I30: 19252.19827 | J30: 18441.74804 | K30: 18259.97127 | L30: =L19-L28 -> 17752.01243
B32: Other Comprehensive Income | C32: 0 | D32: 0 | E32: 0 | F32: 0 | G32: 0 | H32: 0 | I32: 0 | J32: 0 | K32: 0 | L32: 0
B34: Total Comprehensive Income | C34: =SUM(C30:C33) -> 9399.676951 | D34: =SUM(D30:D33) -> 10659.5299 | E34: 12037.06261 | F34: 13341.52805 | G34: 14848.76639 | H34: 15947.24487 | I34: 19252.19827 | J34: 18441.74804 | K34: 18259.97127 | L34: =SUM(L30:L33) -> 17752.01243
B36: Net Operating Result before Capital Grants | C36: =+C34-C17 -> 3534.166951 | D36: 4676.709696 | E36: 5934.586002 | F36: 7117.001919 | G36: 8499.749729 | H36: 9471.247877 | I36: 12646.68134 | J36: 11704.12077 | K36: 11387.59146 | L36: 10742.18501
B38: Adjustments for Underlying Result
B39: Gain on Sale of assets | C39: -250 | D39: -250 | E39: -250 | F39: -250 | G39: -250 | H39: -250 | I39: -250 | J39: -250 | K39: -250 | L39: -250
B40: Investment property fair value increases | C40: -786.675 | D40: -996.02325 | E40: -1025.903948 | F40: -1056.681066 | G40: -1088.381498 | H40: -1121.032943 | I40: -1154.663931 | J40: -1189.303849 | K40: -1224.982965 | L40: -1261.732453
B41: NAP Profit | C41: -4011.741072 | D41: -4111.340196 | E41: -4213.249039 | F41: -4317.520386 | G41: -4424.208208 | H41: -4533.367681 | I41: -4645.055221 | J41: -4759.328504 | K41: -4876.246495 | L41: -5230.28844
B42: Local election costs | C42: 0 | D42: 500 | E42: 0 | F42: 0 | G42: 0 | H42: 550 | I42: 0 | J42: 0 | K42: 0 | L42: 600
B43: NAP dividend | C43: 1984.861738 | D43: 2055.670098 | E43: 2106.624519 | F43: 2158.760193 | G43: 2212.104104 | H43: 2266.683841 | I43: 2322.527611 | J43: 2379.664252 | K43: 2438.123248 | L43: 2615.14422
B44: Underlying result | C44: =SUM(C36:C43) -> 470.6126168 | D44: 1875.016348 | E44: 2552.057535 | F44: 3651.56066 | G44: 4949.264127 | H44: 6383.531093 | I44: 8919.489798 | J44: 7885.152669 | K44: 7474.485247 | L44: =SUM(L36:L43) -> 7215.30834
B46: Less: SRV loan repayments | C46: =-[3]SRV!D91/1000 -> -550 | D46: =-[3]SRV!E91/1000 -> -1128.947368 | E46: =-[3]SRV!F91/1000 -> -1684.502924 | F46: =-[3]SRV!G91/1000 -> -2155.091159 | G46: =-[3]SRV!H91/1000 -> -2780.091159 | H46: =-[3]SRV!I91/1000 -> -3246.757826 | I46: =-[3]SRV!J91/1000 -> -3246.757826 | J46: =-[3]SRV!K91/1000 -> -3477.527057 | K46: =-[3]SRV!L91/1000 -> -3477.527057 | L46: =-[3]SRV!M91/1000 -> -3477.527057
B48: Revised underlying result | C48: =C44+C46 -> -79.38738323 | D48: =D44+D46 -> 746.06898 | E48: 867.5546113 | F48: 1496.4695 | G48: 2169.172968 | H48: 3136.773267 | I48: 5672.731972 | J48: 4407.625612 | K48: 3996.95819 | L48: 3737.781284

Sheet Strategic - Balance Sheet
B7: Balance Sheet - Strategic Scenario - Consolidated
B9: ='Strategic - P&L'!#REF! ->  | C9: New Projection | D9: New Projection | E9: New Projection | F9: New Projection | G9: New Projection | H9: New Projection | I9: New Projection | J9: New Projection | K9: New Projection | L9: New Projection
B10: As at 30 June | C10: ='Strategic - P&L'!C9 -> 2020 | D10: ='Strategic - P&L'!D9 -> 2021 | E10: ='Strategic - P&L'!E9 -> 2022 | F10: ='Strategic - P&L'!F9 -> 2023 | G10: ='Strategic - P&L'!G9 -> 2024 | H10: ='Strategic - P&L'!H9 -> 2025 | I10: ='Strategic - P&L'!I9 -> 2026 | J10: ='Strategic - P&L'!J9 -> 2027 | K10: ='Strategic - P&L'!K9 -> 2028 | L10: ='Strategic - P&L'!L9 -> 2029
C11: $'000 | D11: $'000 | E11: $'000 | F11: $'000 | G11: $'000 | H11: $'000 | I11: $'000 | J11: $'000 | K11: =J11 -> $'000 | L11: =K11 -> $'000
B12: ASSETS
B13: Current Assets
B14: Cash and Cash Equivalents | C14: 7941.391936 | D14: 7157.572005 | E14: 9375.815108 | F14: 11058.8481 | G14: 12967.33007 | H14: 16409.28407 | I14: 17725.18628 | J14: 19474.44919 | K14: 20007.83508 | L14: 24258.4841
B15: Investments | C15: 41241 | D15: 41241 | E15: 41241 | F15: 41241 | G15: 41241 | H15: 41241 | I15: 41241 | J15: 41241 | K15: 41241 | L15: 41241
B16: Receivables | C16: 6907.618988 | D16: 7234.270873 | E16: 7590.515094 | F16: 7967.213269 | G16: 8364.661424 | H16: 8764.16377 | I16: 9187.240736 | J16: 9426.146754 | K16: 9671.025423 | L16: 9922.026059
B17: Inventories | C17: 2675 | D17: 2675 | E17: 2675 | F17: 2675 | G17: 2675 | H17: 2675 | I17: 2675 | J17: 2675 | K17: 2675 | L17: 2675
B19: Total Current Assets | C19: =SUM(C14:C17) -> 58765.01092 | D19: 58307.84288 | E19: 60882.3302 | F19: 62942.06136 | G19: 65247.9915 | H19: 69089.44784 | I19: 70828.42701 | J19: 72816.59595 | K19: 73594.8605 | L19: =SUM(L14:L17) -> 78096.51016
B21: Non-Current Assets
B22: Investments | C22: 0 | D22: =C22 -> 0 | E22: 0 | F22: 0 | G22: 0 | H22: 0 | I22: 0 | J22: 0 | K22: 0 | L22: 0
B23: Receivables | C23: 0 | D23: 0 | E23: 0 | F23: 0 | G23: 0 | H23: 0 | I23: 0 | J23: 0 | K23: 0 | L23: 1
B24: Infrastructure, Property, Plant & Equipment | C24: 927505.4829 | D24: 944889.4531 | E24: 960291.1181 | F24: 975010.3728 | G24: 992872.7158 | H24: 1009581.27 | I24: 1022971.115 | J24: 1039168.79 | K24: 1052384.759 | L24: 1064439.831
B25: Inventories | C25: 16651 | D25: 16651 | E25: 16651 | F25: 16651 | G25: 16651 | H25: 16651 | I25: 16651 | J25: 16651 | K25: 16651 | L25: 16651
B26: Investment Properties | C26: 33200.775 | D26: 34196.79825 | E26: 35222.7022 | F26: 36279.38326 | G26: 37367.76476 | H26: 38488.7977 | I26: 39643.46164 | J26: 40832.76548 | K26: 42057.74845 | L26: 43319.4809
B27: Intangibles | C27: 1060.966048 | D27: 1187.022838 | E27: 1296.324521 | F27: 1392.433523 | G27: 1478.205072 | H27: 1555.928768 | I27: 1627.441842 | J27: 1694.219773 | K27: 1757.448774 | L27: 1818.0838
B28: Total Non-Current Assets | C28: =SUM(C22:C27) -> 978418.2239 | D28: 996924.2742 | E28: 1013461.145 | F28: 1029333.19 | G28: 1048369.686 | H28: 1066276.996 | I28: 1080893.019 | J28: 1098346.775 | K28: 1112850.956 | L28: 1126229.395
B29: Total Assets | C29: =C28+C19 -> 1037183.235 | D29: 1055232.117 | E29: 1074343.475 | F29: 1092275.251 | G29: 1113617.677 | H29: 1135366.444 | I29: 1151721.446 | J29: 1171163.371 | K29: 1186445.817 | L29: 1204325.905
B31: LIABILITIES
B32: Current Liabilities
B33: Trade & Other Payables | C33: 8824.884306 | D33: 9155.506413 | E33: 9271.644074 | F33: 9503.435175 | G33: 9752.021055 | H33: 10116.82158 | I33: 10245.71712 | J33: 10501.86005 | K33: 10764.40655 | L33: 11165.51671
B34: Borrowings | C34: 4366.443589 | D34: 4095.039482 | E34: 4652.461055 | F34: 4794.020622 | G34: 3899.216686 | H34: 3923.949406 | I34: 4180.395797 | J34: 4265.10794 | K34: 3998.578865 | L34: 3998.578865
B35: Provisions | C35: 15815.28617 | D35: 15962.27584 | E35: 16686.06051 | F35: 17343.72273 | G35: 18003.37466 | H35: 19943.25703 | I35: 20410.59424 | J35: 21628.88651 | K35: 21635.36599 | L35: 24345.75879
B36: Other Current Liabilities | C36: 0 | D36: 0 | E36: 0 | F36: 0 | G36: 0 | H36: 0 | I36: 0 | J36: 0 | K36: 0 | L36: 1
B37: Total Current Liabilities | C37: =SUM(C33:C36) -> 29006.61406 | D37: 29212.82173 | E37: 30610.16564 | F37: 31641.17853 | G37: 31654.6124 | H37: 33984.02801 | I37: 34836.70716 | J37: 36395.8545 | K37: 36398.3514 | L37: =SUM(L33:L36) -> 39510.85437
B39: Non Current Liabilities
B40: Trade & Other Payables | C40: 3564 | D40: 3018.5 | E40: 2473 | F40: 1927.5 | G40: 1382 | H40: 836.5 | I40: 291 | J40: 0 | K40: 0 | L40: 0
B41: Borrowings | C41: 27971.19095 | D41: 34876.15147 | E41: 40223.69041 | F41: 43429.66979 | G41: 49530.45311 | H41: 52606.5037 | I41: 48426.1079 | J41: 47160.99996 | K41: 43162.4211 | L41: 39163.84223
B42: Provisions | C42: 811.4293518 | D42: 1635.113495 | E42: 2510.025953 | F42: 3408.781614 | G42: 4333.724253 | H42: 5275.280327 | I42: 6251.300204 | J42: 7249.035546 | K42: 8268.591953 | L42: 9283.342127
B43: Other Non-current Liabilities | C43: 0 | D43: 0 | E43: 0 | F43: 0 | G43: 0 | H43: 0 | I43: 0 | J43: 0 | K43: 0 | L43: 1
B44: Total Non-Current Liabilities | C44: =SUM(C40:C43) -> 32346.6203 | D44: 39529.76496 | E44: 45206.71637 | F44: 48765.95141 | G44: 55246.17736 | H44: 58718.28403 | I44: 54968.40811 | J44: 54410.03551 | K44: =SUM(K40:K43) -> 51431.01305 | L44: =SUM(L40:L43) -> 48448.18436
B45: Total Liabilities | C45: =C44+C37 -> 61353.23436 | D45: 68742.5867 | E45: 75816.882 | F45: 80407.12994 | G45: 86900.78976 | H45: 92702.31204 | I45: 89805.11527 | J45: 90805.89 | K45: 87829.36445 | L45: =L44+L37 -> 87959.03873
B46: Net Assets | C46: =C29-C45 -> 975830.0005 | D46: 986489.5304 | E46: 998526.593 | F46: 1011868.121 | G46: 1026716.887 | H46: 1042664.132 | I46: 1061916.331 | J46: 1080357.481 | K46: 1098616.452 | L46: =L29-L45 -> 1116366.867
B48: EQUITY
B49: Accumulated Surplus | C49: 607271.4485 | D49: 617930.9784 | E49: 629968.041 | F49: 643308.5691 | G49: 658158.3355 | H49: 674105.5803 | I49: 693356.7786 | J49: 711798.9289 | K49: 730056.9002 | L49: 747807.3147
B50: Asset Revaluation Reserves | C50: 368559 | D50: 368559 | E50: 368559 | F50: 368559 | G50: 368559 | H50: 368558 | I50: 368559 | J50: 368558 | K50: 368559 | L50: 368560
B51: Total Equity | C51: =SUM(C49:C50) -> 975830.4485 | D51: 986489.9784 | E51: 998527.041 | F51: 1011867.569 | G51: 1026717.335 | H51: 1042663.58 | I51: 1061915.779 | J51: 1080356.929 | K51: 1098615.9 | L51: 1116367.315

Sheet Strategic - Cashflow
B7: Cashflow Statement - Strategic Scenario - Consolidated
B9: For the period ended 30 June | C9: 2020 | D9: =C9+1 -> 2021 | E9: 2022 | F9: 2023 | G9: 2024 | H9: 2025 | I9: 2026 | J9: 2027 | K9: 2028 | L9: 2029
B10: Cash Flows from Operating Activities | C10: $'000 | D10: $'000 | E10: $'000 | F10: $'000 | G10: $'000 | H10: $'000 | I10: $'000 | J10: $'000 | K10: $'000 | L10: $'000
B11: Receipts:
B13: Rates & Annual Charges | C13: 60667.89048 | D13: 64721.46137 | E13: 68902.27702 | F13: 73379.77538 | G13: 78165.38198 | H13: 83300.49538 | I13: 88768.96855 | J13: 91336.69064 | K13: 93773.8579 | L13: 96270.95435
B14: User Charges & Fees | C14: 41681.74825 | D14: 42875.17696 | E14: 44285.97538 | F14: 45742.22376 | G14: 47227.79836 | H14: 48408.49332 | I14: 49618.70565 | J14: 50859.17329 | K14: 52130.65262 | L14: 53433.91894
B15: Interest & Investment Revenue Received | C15: 1421.4132 | D15: 1229.559798 | E15: 1209.9643 | F15: 1265.420378 | G15: 1307.496202 | H15: 1355.208252 | I15: 1440 | J15: 1473 | K15: 1517 | L15: 1529
B16: Grants & Contributions | C16: 16062.91586 | D16: 16445.87121 | E16: 16838.02809 | F16: 17239.60909 | G16: 17650.84222 | H16: 18071.96104 | I16: 18503.20479 | J16: 18944.81852 | K16: 19397.05328 | L16: 19860.16618
B17: Bonds & Deposits Received
B18: Other | C18: 6297.307 | D18: 6265.0583 | E18: 6416.704641 | F18: 6571.992738 | G18: 6731.009151 | H18: 6893.842472 | I18: 7060.583369 | J18: 7231.324634 | K18: 7406.16123 | L18: 7585.190346
B19: Payments:
B20: Employee Benefits & On-Costs | C20: -48789.77601 | D20: -50295.94415 | E20: -53360.14234 | F20: -56633 | G20: -60000 | H20: -63945 | I20: -65519 | J20: -69576 | K20: -71157 | L20: -76608
B21: Materials & Contracts | C21: -40258.55545 | D21: -41401.06035 | E21: -41714.47436 | F21: -42918 | G21: -44024 | H21: -46050 | I21: -46424 | J21: -48025 | K21: -49635 | L21: -51587
B22: Borrowing Costs | C22: -1317.304752 | D22: -1822.909543 | E22: -2173.883395 | F22: -2408.385347 | G22: -2725.989658 | H22: -2903.599684 | I22: -2723.574563 | J22: -2692.883737 | K22: -2500.441683 | L22: -2302.350429
B23: Bonds & Deposits Refunded
B24: Other | C24: -12458.55111 | D24: -13242.60553 | E24: -12784.38273 | F24: -13025 | G24: -13354 | H24: -11000 | I24: -14710 | J24: -12820 | K24: -15051 | L24: -9783
B25: Net Cash provided (or used in) Operating Activities | C25: =SUM(C13:C24) -> 23307.08747 | D25: =SUM(D13:D24) -> 24774.60807 | E25: 27620.0666 | F25: 29214.63601 | G25: 30978.53825 | H25: 34131.40078 | I25: 36014.8878 | J25: 36731.12335 | K25: 35881.28335 | L25: 38398.87939
B28: Cash Flows from Investing Activities
B29: Receipts:
B30: Sale of Investment Securities
B31: Sale of Investment Property
B32: Sale of Real Estate Assets | C32: 0 | D32: 0 | E32: 0 | F32: 0 | G32: 0 | H32: 0 | I32: 0 | J32: 0 | K32: 0 | L32: 0
B33: Sale of Infrastructure, Property, Plant & Equipment | C33: 250 | D33: 250 | E33: 250 | F33: 250 | G33: 250 | H33: 250 | I33: 250 | J33: 250 | K33: 250 | L33: 250
B34: Payments:
B35: Purchase of Investment Securities
B36: Purchase of Investment Property
B37: Purchase of Infrastructure, Property, Plant & Equipment | C37: -31478.52137 | D37: -32021.73441 | E37: -31126.02777 | F37: -30691.67846 | G37: -34068.97043 | H37: -33608.19469 | I37: -30559.64955 | J37: -33573.64079 | K37: -30850.48181 | L37: -29890.49386
B38: Purchase of Intangible Assets | C38: -410 | D38: -420.25 | E38: -430.75625 | F38: -441.5251562 | G38: -452.5632852 | H38: -463.8773673 | I38: -475.4743015 | J38: -487.361159 | K38: -499.545188 | L38: -512.0338177
B39: Net Cash provided (or used in) Investing Activities | C39: =SUM(C30:C38) -> -31638.52137 | D39: =SUM(D30:D38) -> -32191.98441 | E39: =SUM(E30:E38) -> -31306.78402 | F39: =SUM(F31:F38) -> -30883.20362 | G39: =SUM(G31:G38) -> -34271.53371 | H39: -33822.07205 | I39: -30785.12385 | J39: -33811.00195 | K39: -31100.027 | L39: -30152.52767
B42: Cash Flows from Financing Activities
B43: Receipts:
B44: Proceeds from Borrowings & Advances | C44: 17500 | D44: 11000 | E44: 10000 | F44: 8000 | G44: 10000 | H44: 7000 | I44: 0 | J44: 3000 | K44: 0 | L44: 0
B45: Proceeds from Finance Leases
B46: Other Financing Activity Receipts
B48: Payments:
B49: Repayment of Borrowings & Advances | C49: -3851.813523 | D49: -4366.443589 | E49: -4095.039482 | F49: -4652.461055 | G49: -4794.020622 | H49: -3899.216686 | I49: -3923.949406 | J49: -4180.395797 | K49: -4265.10794 | L49: -3998.578865
B50: Net Cash Flow provided (used in) Financing Activities | C50: =SUM(C44:C49) -> 13648.18648 | D50: 6633.556411 | E50: 5904.960518 | F50: 3347.538945 | G50: 5205.979378 | H50: 3100.783314 | I50: -3923.949406 | J50: -1180.395797 | K50: -4265.10794 | L50: -3998.578865
B52: Net Increase/(Decrease) in Cash & Cash Equivalents | C52: =+C25+C39+C50 -> 5316.752576 | D52: =+D25+D39+D50 -> -783.8199308 | E52: 2218.243102 | F52: 1678.971331 | G52: 1912.983921 | H52: 3410.11204 | I52: 1305.814539 | J52: 1739.725603 | K52: 516.1484105 | L52: 4247.772848
B54: plus: Cash - beginning of year | C54: 2624.63936 | D54: =C56 -> 7941.391936 | E54: 7157.572005 | F54: 9375.815108 | G54: 11054.78644 | H54: 12967.77036 | I54: 16377.8824 | J54: 17683.69694 | K54: 19423.42254 | L54: 19939.57095
B56: Cash - end of the year | C56: =+C54+C52 -> 7941.391936 | D56: 7157.572005 | E56: 9375.815108 | F56: 11054.78644 | G56: 12967.77036 | H56: 16377.8824 | I56: 17683.69694 | J56: =+J54+J52 -> 19423.42254 | K56: =+K54+K52 -> 19939.57095 | L56: =+L54+L52 -> 24187.3438
B57: plus: Investments - end of the year | C57: 41241 | D57: 41241 | E57: 41241 | F57: 41241 | G57: 41241 | H57: 41241 | I57: 41241 | J57: 41241 | K57: 41241 | L57: 41241
B58: Total Cash & Investments - end of the year | C58: =+C56+C57 -> 49182.39194 | D58: 48398.57201 | E58: 50616.81511 | F58: 52295.78644 | G58: 54208.77036 | H58: 57618.8824 | I58: 58924.69694 | J58: 60664.42254 | K58: 61180.57095 | L58: 65428.3438
B60: Representing:
B61: - External Restrictions
B62: - Internal Restricitons
B63: - Unrestricted
B66: Less restricted Cash (NAL) | C66: -13936.97716 | D66: -14362.98437 | E66: -16336.70444 | F66: -18359.23756 | G66: -20431.70892 | H66: -22555.2692 | I66: -24731.09516 | J66: -26960.39022 | K66: -29244.38504 | L66: -31701.54763
B67: Cash, Cash Equivalents & Investments - end of the year | C67: =C58+C66 -> 35245.41478 | D67: =D58+D66 -> 34035.58763 | E67: 34280.11067 | F67: 33936.54888 | G67: 33777.06144 | H67: 35063.6132 | I67: 34193.60178 | J67: 33704.03233 | K67: 31936.18591 | L67: 33726.79617

Sheet Strategic - Ratios
B7: Ratios - Strategic Scenario - Consolidated
C9: ='Strategic - P&L'!C9 -> 2020 | D9: ='Strategic - P&L'!D9 -> 2021 | E9: ='Strategic - P&L'!E9 -> 2022 | F9: ='Strategic - P&L'!F9 -> 2023 | G9: ='Strategic - P&L'!G9 -> 2024 | H9: ='Strategic - P&L'!H9 -> 2025 | I9: ='Strategic - P&L'!I9 -> 2026 | J9: ='Strategic - P&L'!J9 -> 2027 | K9: ='Strategic - P&L'!K9 -> 2028 | L9: ='Strategic - P&L'!L9 -> 2029
B11: Operating Performance | C11: =(C13-C14-C15)/(C13-C14) -> 0.02033031586 | D11: 0.02678846706 | E11: 0.03473122778 | F11: 0.04131804257 | G11: 0.0485682679 | H11: 0.05249025698 | I11: 0.06955724642 | J11: 0.0619078787 | K11: 0.05827250856 | L11: =(L13-L14-L15)/(L13-L14) -> 0.05290157473
B12: Operating Perfomance Min Target | C12: 0 | D12: 0 | E12: 0 | F12: 0 | G12: 0 | H12: 0 | I12: 0 | J12: 0 | K12: 0 | L12: 0
B13: Operating Revenue* | C13: ='Strategic - P&L'!C19+'Strategic - P&L'!C40-'Strategic - P&L'!C18 -> 128711.2133 | D13: ='Strategic - P&L'!D19+'Strategic - P&L'!D40-'Strategic - P&L'!D18 -> 134048.6195 | E13: ='Strategic - P&L'!E19+'Strategic - P&L'!E40-'Strategic - P&L'!E18 -> 140237.7304 | F13: ='Strategic - P&L'!F19+'Strategic - P&L'!F40-'Strategic - P&L'!F18 -> 146848.8271 | G13: ='Strategic - P&L'!G19+'Strategic - P&L'!G40-'Strategic - P&L'!G18 -> 153798.5458 | H13: ='Strategic - P&L'!H19+'Strategic - P&L'!H40-'Strategic - P&L'!H18 -> 160794.4439 | I13: ='Strategic - P&L'!I19+'Strategic - P&L'!I40-'Strategic - P&L'!I18 -> 168228.0363 | J13: ='Strategic - P&L'!J19+'Strategic - P&L'!J40-'Strategic - P&L'!J18 -> 172545.5525 | K13: ='Strategic - P&L'!K19+'Strategic - P&L'!K40-'Strategic - P&L'!K18 -> 176980.1843 | L13: ='Strategic - P&L'!L19+'Strategic - P&L'!L40-'Strategic - P&L'!L18 -> 181493.3396
B14: Capital Grants | C14: ='Strategic - P&L'!C17 -> 5865.51 | D14: ='Strategic - P&L'!D17 -> 5982.8202 | E14: ='Strategic - P&L'!E17 -> 6102.476604 | F14: ='Strategic - P&L'!F17 -> 6224.526136 | G14: ='Strategic - P&L'!G17 -> 6349.016659 | H14: ='Strategic - P&L'!H17 -> 6475.996992 | I14: ='Strategic - P&L'!I17 -> 6605.516932 | J14: ='Strategic - P&L'!J17 -> 6737.62727 | K14: ='Strategic - P&L'!K17 -> 6872.379816 | L14: ='Strategic - P&L'!L17 -> 7009.827412
B15: Operating Expenses | C15: ='Strategic - P&L'!C28 -> 120348.2114 | D15: ='Strategic - P&L'!D28 -> 124635.1129 | E15: ='Strategic - P&L'!E28 -> 129476.5718 | F15: ='Strategic - P&L'!F28 -> 134813.9801 | G15: ='Strategic - P&L'!G28 -> 140288.1609 | H15: ='Strategic - P&L'!H28 -> 146218.232 | I15: ='Strategic - P&L'!I28 -> 150380.502 | J15: ='Strategic - P&L'!J28 -> 155543.1083 | K15: ='Strategic - P&L'!K28 -> 160195.196 | L15: ='Strategic - P&L'!L28 -> 165253.0596
B17: Own Source Revenue | C17: =+C19/C20 -> 0.8585599857 | D17: 0.8610152699 | E17: 0.8640411191 | F17: 0.8671237829 | G17: 0.8701586428 | H17: 0.8729004459 | I17: 0.8756720631 | J17: 0.8759440454 | K17: 0.8762192064 | L17: =+L19/L20 -> 0.876468996
B18: Own Source Revenue Min Target | C18: 0.6 | D18: 0.6 | E18: 0.6 | F18: 0.6 | G18: 0.6 | H18: 0.6 | I18: 0.6 | J18: 0.6 | K18: 0.6 | L18: 0.6
B19: Operating Revenue** | C19: ='Strategic - P&L'!C12+'Strategic - P&L'!C13+'Strategic - P&L'!C15+'Strategic - P&L'!C14+'Strategic - P&L'!C40 -> 110506.2975 | D19: ='Strategic - P&L'!D12+'Strategic - P&L'!D13+'Strategic - P&L'!D15+'Strategic - P&L'!D14+'Strategic - P&L'!D40 -> 115417.9083 | E19: ='Strategic - P&L'!E12+'Strategic - P&L'!E13+'Strategic - P&L'!E15+'Strategic - P&L'!E14+'Strategic - P&L'!E40 -> 121171.1656 | F19: ='Strategic - P&L'!F12+'Strategic - P&L'!F13+'Strategic - P&L'!F15+'Strategic - P&L'!F14+'Strategic - P&L'!F40 -> 127336.1104 | G19: ='Strategic - P&L'!G12+'Strategic - P&L'!G13+'Strategic - P&L'!G15+'Strategic - P&L'!G14+'Strategic - P&L'!G40 -> 133829.1338 | H19: ='Strategic - P&L'!H12+'Strategic - P&L'!H13+'Strategic - P&L'!H15+'Strategic - P&L'!H14+'Strategic - P&L'!H40 -> 140357.5418 | I19: ='Strategic - P&L'!I12+'Strategic - P&L'!I13+'Strategic - P&L'!I15+'Strategic - P&L'!I14+'Strategic - P&L'!I40 -> 147312.5916 | J19: ='Strategic - P&L'!J12+'Strategic - P&L'!J13+'Strategic - P&L'!J15+'Strategic - P&L'!J14+'Strategic - P&L'!J40 -> 151140.2492 | K19: ='Strategic - P&L'!K12+'Strategic - P&L'!K13+'Strategic - P&L'!K15+'Strategic - P&L'!K14+'Strategic - P&L'!K40 -> 155073.4367 | L19: ='Strategic - P&L'!L12+'Strategic - P&L'!L13+'Strategic - P&L'!L15+'Strategic - P&L'!L14+'Strategic - P&L'!L40 -> 159073.2851
B20: Total operating Revenue* | C20: =C13 -> 128711.2133 | D20: 134048.6195 | E20: 140237.7304 | F20: 146848.8271 | G20: 153798.5458 | H20: 160794.4439 | I20: 168228.0363 | J20: 172545.5525 | K20: 176980.1843 | L20: =L13 -> 181493.3396
B22: Capital Expenditure Ratio | C22: =C24/C25 -> 1.926085447 | D22: 1.895330282 | E22: 1.726834432 | F22: 1.674643199 | G22: 1.827310721 | H22: 1.733882808 | I22: 1.552842767 | J22: 1.681440691 | K22: 1.523286202 | L22: =L24/L25 -> 1.458384984
B23: Capital Expenditure Ratio Min Target | C23: 1 | D23: 1 | E23: 1 | F23: 1 | G23: 1 | H23: 1 | I23: 1 | J23: 1 | K23: 1 | L23: 1
B24: Capital Expenditure | C24: =-'Strategic - Cashflow'!C37-'Strategic - Cashflow'!C38 -> 31888.52137 | D24: =-'Strategic - Cashflow'!D37-'Strategic - Cashflow'!D38 -> 32441.98441 | E24: =-'Strategic - Cashflow'!E37-'Strategic - Cashflow'!E38 -> 31556.78402 | F24: =-'Strategic - Cashflow'!F37-'Strategic - Cashflow'!F38 -> 31133.20362 | G24: =-'Strategic - Cashflow'!G37-'Strategic - Cashflow'!G38 -> 34521.53371 | H24: =-'Strategic - Cashflow'!H37-'Strategic - Cashflow'!H38 -> 34072.07205 | I24: =-'Strategic - Cashflow'!I37-'Strategic - Cashflow'!I38 -> 31035.12385 | J24: =-'Strategic - Cashflow'!J37-'Strategic - Cashflow'!J38 -> 34061.00195 | K24: =-'Strategic - Cashflow'!K37-'Strategic - Cashflow'!K38 -> 31350.027 | L24: =-'Strategic - Cashflow'!L37-'Strategic - Cashflow'!L38 -> 30402.52767
B25: Depreciation | C25: ='Strategic - P&L'!C25+'Strategic - P&L'!C26 -> 16556.13016 | D25: ='Strategic - P&L'!D25+'Strategic - P&L'!D26 -> 17116.79738 | E25: ='Strategic - P&L'!E25+'Strategic - P&L'!E26 -> 18274.35418 | F25: ='Strategic - P&L'!F25+'Strategic - P&L'!F26 -> 18590.9474 | G25: ='Strategic - P&L'!G25+'Strategic - P&L'!G26 -> 18891.98882 | H25: ='Strategic - P&L'!H25+'Strategic - P&L'!H26 -> 19650.73527 | I25: ='Strategic - P&L'!I25+'Strategic - P&L'!I26 -> 19986.00536 | J25: ='Strategic - P&L'!J25+'Strategic - P&L'!J26 -> 20257.03442 | K25: ='Strategic - P&L'!K25+'Strategic - P&L'!K26 -> 20580.52319 | L25: ='Strategic - P&L'!L25+'Strategic - P&L'!L26 -> 20846.70921
B27: Debt Service Coverage ratio | C27: =C28/(C29+C30) -> 3.411067029 | D27: =D28/(D29+D30) -> 3.121153959 | E27: 3.46520006 | F27: 3.27663945 | G27: 3.290668487 | H27: 3.880119721 | I27: 4.480881273 | J27: 4.226177117 | K27: 4.282762978 | L27: =L28/(L29+L30) -> 4.530433458
B28: EBITDA | C28: ='Strategic - P&L'!C36+'Strategic - P&L'!C25+'Strategic - P&L'!C26+'Strategic - P&L'!C40-'Strategic - P&L'!C18-'Strategic - P&L'!C14 -> 17632.20892 | D28: ='Strategic - P&L'!D36+'Strategic - P&L'!D25+'Strategic - P&L'!D26+'Strategic - P&L'!D40-'Strategic - P&L'!D18-'Strategic - P&L'!D14 -> 19317.92403 | E28: ='Strategic - P&L'!E36+'Strategic - P&L'!E25+'Strategic - P&L'!E26+'Strategic - P&L'!E40-'Strategic - P&L'!E18-'Strategic - P&L'!E14 -> 21723.07193 | F28: ='Strategic - P&L'!F36+'Strategic - P&L'!F25+'Strategic - P&L'!F26+'Strategic - P&L'!F40-'Strategic - P&L'!F18-'Strategic - P&L'!F14 -> 23135.84787 | G28: ='Strategic - P&L'!G36+'Strategic - P&L'!G25+'Strategic - P&L'!G26+'Strategic - P&L'!G40-'Strategic - P&L'!G18-'Strategic - P&L'!G14 -> 24745.86085 | H28: ='Strategic - P&L'!H36+'Strategic - P&L'!H25+'Strategic - P&L'!H26+'Strategic - P&L'!H40-'Strategic - P&L'!H18-'Strategic - P&L'!H14 -> 26395.74195 | I28: ='Strategic - P&L'!I36+'Strategic - P&L'!I25+'Strategic - P&L'!I26+'Strategic - P&L'!I40-'Strategic - P&L'!I18-'Strategic - P&L'!I14 -> 29786.76566 | J28: ='Strategic - P&L'!J36+'Strategic - P&L'!J25+'Strategic - P&L'!J26+'Strategic - P&L'!J40-'Strategic - P&L'!J18-'Strategic - P&L'!J14 -> 29047.69668 | K28: ='Strategic - P&L'!K36+'Strategic - P&L'!K25+'Strategic - P&L'!K26+'Strategic - P&L'!K40-'Strategic - P&L'!K18-'Strategic - P&L'!K14 -> 28975.24545 | L28: ='Strategic - P&L'!L36+'Strategic - P&L'!L25+'Strategic - P&L'!L26+'Strategic - P&L'!L40-'Strategic - P&L'!L18-'Strategic - P&L'!L14 -> 28545.94089
B29: Principal repayments | C29: =-'Strategic - Cashflow'!C49 -> 3851.813523 | D29: =-'Strategic - Cashflow'!D49 -> 4366.443589 | E29: =-'Strategic - Cashflow'!E49 -> 4095.039482 | F29: =-'Strategic - Cashflow'!F49 -> 4652.461055 | G29: =-'Strategic - Cashflow'!G49 -> 4794.020622 | H29: =-'Strategic - Cashflow'!H49 -> 3899.216686 | I29: =-'Strategic - Cashflow'!I49 -> 3923.949406 | J29: =-'Strategic - Cashflow'!J49 -> 4180.395797 | K29: =-'Strategic - Cashflow'!K49 -> 4265.10794 | L29: =-'Strategic - Cashflow'!L49 -> 3998.578865
B30: Interest expense | C30: ='Strategic - P&L'!C23 -> 1317.304752 | D30: ='Strategic - P&L'!D23 -> 1822.909543 | E30: ='Strategic - P&L'!E23 -> 2173.883395 | F30: ='Strategic - P&L'!F23 -> 2408.385347 | G30: ='Strategic - P&L'!G23 -> 2725.989658 | H30: ='Strategic - P&L'!H23 -> 2903.599684 | I30: ='Strategic - P&L'!I23 -> 2723.574563 | J30: ='Strategic - P&L'!J23 -> 2692.883737 | K30: ='Strategic - P&L'!K23 -> 2500.441683 | L30: ='Strategic - P&L'!L23 -> 2302.350429
B31: Debt Service Coverage ratio Min Target | C31: 2 | D31: 2 | E31: 2 | F31: 2 | G31: 2 | H31: 2 | I31: 2 | J31: 2 | K31: 2 | L31: 2
B33: Debt Service Ratio | C33: =(C36+C37)/(C34-C35) -> 0.04207813651 | D33: 0.04832947723 | E33: 0.0467358334 | F33: 0.05021071291 | G33: 0.05100057169 | H33: 0.04408297586 | I33: 0.04112993656 | J33: 0.04145326302 | K33: 0.03977212946 | L33: 0.0361118894
B34: Operating Revenue | C34: =C13 -> 128711.2133 | D34: 134048.6195 | E34: 140237.7304 | F34: 146848.8271 | G34: 153798.5458 | H34: 160794.4439 | I34: 168228.0363 | J34: 172545.5525 | K34: 176980.1843 | L34: 181493.3396
B35: Capital Grants | C35: 5865.51 | D35: 5982.8202 | E35: 6102.476604 | F35: 6224.526136 | G35: 6349.016659 | H35: 6475.996992 | I35: 6605.516932 | J35: 6737.62727 | K35: 6872.379816 | L35: 7009.827412
B36: Principal repayments | C36: =C29 -> 3851.813523 | D36: 4366.443589 | E36: 4095.039482 | F36: 4652.461055 | G36: 4794.020622 | H36: 3899.216686 | I36: 3923.949406 | J36: 4180.395797 | K36: 4265.10794 | L36: 3998.578865
B37: Interest expense | C37: 1317.304752 | D37: 1822.909543 | E37: 2173.883395 | F37: 2408.385347 | G37: 2725.989658 | H37: 2903.599684 | I37: 2723.574563 | J37: 2692.883737 | K37: 2500.441683 | L37: 2302.350429
B39: Cash Expense Cover Ratio | C39: =C41/(C42/12) -> 5.532534952 | D39: =D41/(D42/12) -> 5.22620609 | E39: 5.322113721 | F39: 5.245452853 | G39: 5.208291492 | H39: 5.410316142 | I39: 5.304528011 | J39: 5.302282608 | K39: 5.148126486 | L39: =L41/(L42/12) -> 5.441821127
B40: Cash Expense Cover Ratio Min Target | C40: 3 | D40: 3 | E40: 3 | F40: 3 | G40: 3 | H40: 3 | I40: 3 | J40: 3 | K40: 3 | L40: 3
B41: Cash & Cash Equivalents | C41: ='Strategic - Cashflow'!C58 -> 49182.39194 | D41: ='Strategic - Cashflow'!D58 -> 48398.57201 | E41: ='Strategic - Cashflow'!E58 -> 50616.81511 | F41: ='Strategic - Cashflow'!F58 -> 52295.78644 | G41: ='Strategic - Cashflow'!G58 -> 54208.77036 | H41: ='Strategic - Cashflow'!H58 -> 57618.8824 | I41: ='Strategic - Cashflow'!I58 -> 58924.69694 | J41: ='Strategic - Cashflow'!J58 -> 60664.42254 | K41: ='Strategic - Cashflow'!K58 -> 61180.57095 | L41: ='Strategic - Cashflow'!L58 -> 65428.3438
B42: Total Expenses - Depreciation and Interest Cost | C42: =-SUM('Strategic - Cashflow'!C20:C24)-'Strategic - Cashflow'!C49 -> 106676.0008 | D42: =-SUM('Strategic - Cashflow'!D20:D24)-'Strategic - Cashflow'!D49 -> 111128.9632 | E42: =-SUM('Strategic - Cashflow'!E20:E24)-'Strategic - Cashflow'!E49 -> 114127.9223 | F42: =-SUM('Strategic - Cashflow'!F20:F24)-'Strategic - Cashflow'!F49 -> 119636.8464 | G42: =-SUM('Strategic - Cashflow'!G20:G24)-'Strategic - Cashflow'!G49 -> 124898.0103 | H42: =-SUM('Strategic - Cashflow'!H20:H24)-'Strategic - Cashflow'!H49 -> 127797.8164 | I42: =-SUM('Strategic - Cashflow'!I20:I24)-'Strategic - Cashflow'!I49 -> 133300.524 | J42: =-SUM('Strategic - Cashflow'!J20:J24)-'Strategic - Cashflow'!J49 -> 137294.2795 | K42: =-SUM('Strategic - Cashflow'!K20:K24)-'Strategic - Cashflow'!K49 -> 142608.5496 | L42: =-SUM('Strategic - Cashflow'!L20:L24)-'Strategic - Cashflow'!L49 -> 144278.9293
B44: Rates and Annual Charges Outstanding | C44: =C45/C46 -> 0.02873141309 | D44: =D45/D46 -> 0.02866143732 | E44: 0.02874603753 | F44: 0.0284876327 | G44: 0.0284101059 | H44: 0.02833104176 | I44: 0.02820248381 | J44: 0.02820732821 | K44: 0.02820583444 | L44: 0.02819691756
B45: Rates, annual and extra charges outstanding | C45: 1755.656816 | D45: 1864.372421 | E45: 1990.908051 | F45: 2101.147328 | G45: 2231.978324 | H45: 2371.308131 | I45: 2515.43722 | J45: 2583.102911 | K45: 2651.876918 | L45: 2721.649805
B46: Rates, annual and extra charges collectible | C46: ='Strategic - P&L'!C12 -> 61105.82902 | D46: ='Strategic - P&L'!D12 -> 65048.11326 | E46: ='Strategic - P&L'!E12 -> 69258.52124 | F46: ='Strategic - P&L'!F12 -> 73756.47356 | G46: ='Strategic - P&L'!G12 -> 78562.83013 | H46: ='Strategic - P&L'!H12 -> 83699.99772 | I46: ='Strategic - P&L'!I12 -> 89192.04552 | J46: ='Strategic - P&L'!J12 -> 91575.59666 | K46: ='Strategic - P&L'!K12 -> 94018.73657 | L46: ='Strategic - P&L'!L12 -> 96522.95499
B49: *Operating revenue excludes 'Investment property fair value increases' and 'Gain on sale of assets'
B50: **Operating revenue excludes all grants and contributions, 'Investment property fair value increases' and 'Gain on sale of assets'

Sheet Strategic - SS7 Ratios
B7: Special Schedule Ratios - Strategic Scenario - Consolidated
C9: 2020 | D9: =C9+1 -> 2021 | E9: =D9+1 -> 2022 | F9: 2023 | G9: 2024 | H9: 2025 | I9: 2026 | J9: 2027 | K9: 2028 | L9: 2029
B11: Building and Infrastructure Renewals Ratio | C11: =C16/C25 -> 1.359822717 | D11: 1.176513401 | E11: 1.132758508 | F11: 1.145241963 | G11: 1.158971507 | H11: 1.14513805 | I11: 1.157553926 | J11: 1.174132501 | K11: 1.187989885 | L11: 1.205631064
B12: Asset Renewals (Building and Infrastructure) | C12: =C16 -> 13193 | D12: =D16 -> 13555.8075 | E12: 13928.59221 | F12: 14311.62849 | G12: 14705.19828 | H12: 15109.59123 | I12: 15525.10499 | J12: 15952.04537 | K12: 16390.72662 | L12: 16841.4716
B13: Depreciation, Amortisation & Impairment | C13: =C25 -> 9702 | D13: =D25 -> 11522.01708 | E13: 12296.1709 | F13: 12496.59806 | G13: 12688.14477 | H13: 13194.5587 | I13: 13411.99285 | J13: 13586.23951 | K13: 13797.02541 | L13: 13969.00935
B15: Numerator:
B16: Asset Renewals (Building & Infrastructure) | C16: =SUM(C17:C22) -> 13193 | D16: 13555.8075 | E16: 13928.59221 | F16: 14311.62849 | G16: 14705.19828 | H16: 15109.59123 | I16: 15525.10499 | J16: 15952.04537 | K16: 16390.72662 | L16: 16841.4716
B17: - Buildings & other structures | C17: 1118 | D17: =C17*1.0275 -> 1148.745 | E17: =D17*1.0275 -> 1180.335488 | F17: 1212.794713 | G17: 1246.146568 | H17: 1280.415599 | I17: 1315.627028 | J17: 1351.806771 | K17: 1388.981457 | L17: 1427.178447
B18: - Roads & bridges | C18: 7803 | D18: =C18*1.0275 -> 8017.5825 | E18: 8238.066019 | F18: 8464.612834 | G18: 8697.389687 | H18: 8936.567904 | I18: 9182.323521 | J18: 9434.837418 | K18: 9694.295447 | L18: 9960.888572
B19: - Footpaths | C19: 488 | D19: 501.42 | E19: 515.20905 | F19: 529.3772989 | G19: 543.9351746 | H19: 558.8933919 | I19: 574.2629602 | J19: 590.0551916 | K19: 606.2817093 | L19: 622.9544564
B20: - Stormwater Drainage | C20: 2643 | D20: 2715.6825 | E20: 2790.363769 | F20: 2867.098772 | G20: 2945.943989 | H20: 3026.957448 | I20: 3110.198778 | J20: 3195.729245 | K20: 3283.611799 | L20: 3373.911123
B21: - Other Infrastructure | C21: 560 | D21: 575.4 | E21: 591.2235 | F21: 607.4821463 | G21: 624.1879053 | H21: 641.3530727 | I21: 658.9902822 | J21: 677.1125149 | K21: 695.7331091 | L21: 714.8657696
B22: - Other Open Space/Recreational Assets | C22: 581 | D22: 596.9775 | E22: 613.3943813 | F22: 630.2627267 | G22: 647.5949517 | H22: 665.4038129 | I22: 683.7024177 | J22: 702.5042342 | K22: 721.8231007 | L22: 741.6732359
B24: Denominator:
B25: Depreciation, Amortisation & Impairment | C25: =SUM(C26:C33) -> 9702 | D25: 11522.01708 | E25: 12296.1709 | F25: 12496.59806 | G25: 12688.14477 | H25: 13194.5587 | I25: 13411.99285 | J25: 13586.23951 | K25: 13797.02541 | L25: 13969.00935
B26: - Buildings | C26: 5074 | D26: =$M26*'Strategic - P&L'!D$25 -> 6025.859745 | E26: =$M26*'Strategic - P&L'!E$25 -> 6430.731766 | F26: =$M26*'Strategic - P&L'!F$25 -> 6535.552469 | G26: =$M26*'Strategic - P&L'!G$25 -> 6635.728821 | H26: =$M26*'Strategic - P&L'!H$25 -> 6900.576484 | I26: =$M26*'Strategic - P&L'!I$25 -> 7014.291618 | J26: =$M26*'Strategic - P&L'!J$25 -> 7105.420271 | K26: =$M26*'Strategic - P&L'!K$25 -> 7215.658457 | L26: =$M26*'Strategic - P&L'!L$25 -> 7305.603743 | M26: 0.3582001741
B27: - Other Structures | C27: 234 | D27: =$M27*'Strategic - P&L'!D$25 -> 278.3115039 | E27: =$M27*'Strategic - P&L'!E$25 -> 297.011 | F27: =$M27*'Strategic - P&L'!F$25 -> 301.8522689 | G27: =$M27*'Strategic - P&L'!G$25 -> 306.479033 | H27: =$M27*'Strategic - P&L'!H$25 -> 318.7113375 | I27: =$M27*'Strategic - P&L'!I$25 -> 323.9634063 | J27: =$M27*'Strategic - P&L'!J$25 -> 328.1722916 | K27: =$M27*'Strategic - P&L'!K$25 -> 333.2637734 | L27: =$M27*'Strategic - P&L'!L$25 -> 337.4180035 | M27: 0.01654390135
B28: - Roads | C28: 2690 | D28: =$M28*'Strategic - P&L'!D$25 -> 3194.445981 | E28: =$M28*'Strategic - P&L'!E$25 -> 3409.077894 | F28: =$M28*'Strategic - P&L'!F$25 -> 3464.645744 | G28: =$M28*'Strategic - P&L'!G$25 -> 3517.751518 | H28: =$M28*'Strategic - P&L'!H$25 -> 3658.153318 | I28: =$M28*'Strategic - P&L'!I$25 -> 3718.436309 | J28: =$M28*'Strategic - P&L'!J$25 -> 3766.745691 | K28: =$M28*'Strategic - P&L'!K$25 -> 3825.185473 | L28: =$M28*'Strategic - P&L'!L$25 -> 3872.867526 | M28: 0.1898900995
B29: - Bridges | C29: 12 | D29: =$M29*'Strategic - P&L'!D$25 -> 14.2520827 | E29: =$M29*'Strategic - P&L'!E$25 -> 15.20966714 | F29: =$M29*'Strategic - P&L'!F$25 -> 15.45758418 | G29: =$M29*'Strategic - P&L'!G$25 -> 15.69451663 | H29: =$M29*'Strategic - P&L'!H$25 -> 16.32092198 | I29: =$M29*'Strategic - P&L'!I$25 -> 16.58987571 | J29: =$M29*'Strategic - P&L'!J$25 -> 16.80540896 | K29: =$M29*'Strategic - P&L'!K$25 -> 17.06613918 | L29: =$M29*'Strategic - P&L'!L$25 -> 17.27887358 | M29: 0.0008471983621
B30: - Footpaths | C30: 119 | D30: =$M30*'Strategic - P&L'!D$25 -> 140.9372623 | E30: =$M30*'Strategic - P&L'!E$25 -> 150.4067084 | F30: =$M30*'Strategic - P&L'!F$25 -> 152.8583325 | G30: =$M30*'Strategic - P&L'!G$25 -> 155.2013311 | H30: =$M30*'Strategic - P&L'!H$25 -> 161.395784 | I30: =$M30*'Strategic - P&L'!I$25 -> 164.0554376 | J30: =$M30*'Strategic - P&L'!J$25 -> 166.1868219 | K30: =$M30*'Strategic - P&L'!K$25 -> 168.7651541 | L30: =$M30*'Strategic - P&L'!L$25 -> 170.868861 | M30: 0.008377850469
B31: - Stormwater Drainage | C31: 188 | D31: =$M31*'Strategic - P&L'!D$25 -> 223.282629 | E31: =$M31*'Strategic - P&L'!E$25 -> 238.2847852 | F31: =$M31*'Strategic - P&L'!F$25 -> 242.1688189 | G31: =$M31*'Strategic - P&L'!G$25 -> 245.8807605 | H31: =$M31*'Strategic - P&L'!H$25 -> 255.6944443 | I31: =$M31*'Strategic - P&L'!I$25 -> 259.9080528 | J31: =$M31*'Strategic - P&L'!J$25 -> 263.2847404 | K31: =$M31*'Strategic - P&L'!K$25 -> 267.3695138 | L31: =$M31*'Strategic - P&L'!L$25 -> 270.7023528 | M31: 0.01327277434
B32: - Other Open Space/Recreational Assets | C32: 1115 | D32: =$M32*'Strategic - P&L'!D$25 -> 1324.651909 | E32: =$M32*'Strategic - P&L'!E$25 -> 1413.654063 | F32: =$M32*'Strategic - P&L'!F$25 -> 1436.696574 | G32: =$M32*'Strategic - P&L'!G$25 -> 1458.718129 | H32: =$M32*'Strategic - P&L'!H$25 -> 1516.939026 | I32: =$M32*'Strategic - P&L'!I$25 -> 1541.936782 | J32: =$M32*'Strategic - P&L'!J$25 -> 1561.969399 | K32: =$M32*'Strategic - P&L'!K$25 -> 1586.202825 | L32: =$M32*'Strategic - P&L'!L$25 -> 1605.975306 | M32: 0.0787423811
B33: - Other Infrastructure | C33: 270 | D33: =$M33*'Strategic - P&L'!D$25 -> 320.2759696 | E33: =$M33*'Strategic - P&L'!E$25 -> 341.79502 | F33: =$M33*'Strategic - P&L'!F$25 -> 347.3662668 | G33: =$M33*'Strategic - P&L'!G$25 -> 352.6906653 | H33: =$M33*'Strategic - P&L'!H$25 -> 366.7673856 | I33: =$M33*'Strategic - P&L'!I$25 -> 372.8113737 | J33: =$M33*'Strategic - P&L'!J$25 -> 377.6548847 | K33: =$M33*'Strategic - P&L'!K$25 -> 383.5140721 | L33: =$M33*'Strategic - P&L'!L$25 -> 388.2946868 | M33: 0.01903842986
B35: Infrastructure Backlog Ratio | C35: =C40/C49 -> 0.01892672074 | D35: 0.01848706892 | E35: 0.01869080387 | F35: 0.0185122136 | G35: 0.01713097505 | H35: 0.01684411443 | I35: 0.01708078899 | J35: 0.01727694833 | K35: 0.01752913194 | L35: 0.0178072015
B36: Estimated Cost to bring Assets to a Satisfactory Condition | C36: =C40 -> 14422.33333 | D36: =D40 -> 14682.9475 | E36: 15086.72856 | F36: 15171.61359 | G36: 14296.83297 | H36: 14293.99587 | I36: 14687.08076 | J36: 15090.97548 | K36: 15505.9773 | L36: 15932.39168
B37: Total (written down) value of Infrastructure, Building, Other Structure & Depreciable Land Improvement Assets | C37: =C49 -> 762009.0946 | D37: =D49 -> 794227.9852 | E37: 807173.8735 | F37: 819546.1611 | G37: 834560.3753 | H37: 848604.771 | I37: 859859.6218 | J37: 873474.5968 | K37: 884583.2959 | L37: 894716.2011
B39: Numerator:
B40: Estimated Cost to bring Assets to a Satisfactory Condition | C40: =SUM(C41:C46) -> 14422.33333 | D40: =SUM(D41:D46) -> 14682.9475 | E40: 15086.72856 | F40: 15171.61359 | G40: 14296.83297 | H40: 14293.99587 | I40: 14687.08076 | J40: 15090.97548 | K40: 15505.9773 | L40: 15932.39168
B41: - Roads | C41: 11320.66667 | D41: =C41*1.0275 -> 11631.985 | E41: =D41*1.0275 -> 11951.86459 | F41: =E41*1.0275-243-87 -> 11950.54086 | G41: =F41*1.0275-950-342 -> 10987.18074 | H41: =G41*1.0275-396 -> 10893.32821 | I41: 11192.89473 | J41: 11500.69934 | K41: 11816.96857 | L41: 12141.93521
B42: - Other Structures | C42: 2.666666667 | D42: =C42*1.0275 -> 2.74 | E42: 2.81535 | F42: 2.892772125 | G42: 2.972323358 | H42: 3.054062251 | I42: 3.138048963 | J42: 3.224345309 | K42: 3.313014805 | L42: 3.404122712
B43: - Stormwater Drainage | C43: 1006 | D43: 1033.665 | E43: 1062.090788 | F43: 1091.298284 | G43: 1121.308987 | H43: 1152.144984 | I43: 1183.828971 | J43: 1216.384268 | K43: 1249.834835 | L43: 1284.205293
B44: - Other Infrastructure | C44: 839.3333333 | D44: 862.415 | E44: 886.1314125 | F44: 910.5000263 | G44: 935.5387771 | H44: 961.2660934 | I44: 987.700911 | J44: 1014.862686 | K44: 1042.77141 | L44: 1071.447624
B45: - Other Open Space/Recreational Assets | C45: =293-51 -> 242 | D45: =C45*1.0275-51 -> 197.655 | E45: 203.0905125 | F45: 208.6755016 | G45: 214.4140779 | H45: 220.310465 | I45: 226.3690028 | J45: 232.5941504 | K45: 238.9904895 | L45: 245.562728
B46: - Buildings | C46: =1096.66666666667-85 -> 1011.666667 | D46: =C46*1.0275-85 -> 954.4875 | E46: 980.7359063 | F46: 1007.706144 | G46: 1035.418063 | H46: 1063.892059 | I46: 1093.149091 | J46: 1123.210691 | K46: 1154.098985 | L46: 1185.836707
B48: Denominator:
B49: Net carrying amount of infrastructure assets | C49: =SUM(C50:C57) -> 762009.0946 | D49: =SUM(D50:D57) -> 794227.9852 | E49: 807173.8735 | F49: 819546.1611 | G49: 834560.3753 | H49: 848604.771 | I49: 859859.6218 | J49: 873474.5968 | K49: 884583.2959 | L49: 894716.2011
B50: - Buildings | C50: =$M50*'Standard - balance sheet'!C$24 -> 90274.13296 | D50: =$M50*'Strategic - Balance Sheet'!D$24 -> 94091.05908 | E50: =$M50*'Strategic - Balance Sheet'!E$24 -> 95624.74004 | F50: =$M50*'Strategic - Balance Sheet'!F$24 -> 97090.46734 | G50: =$M50*'Strategic - Balance Sheet'!G$24 -> 98869.17994 | H50: =$M50*'Strategic - Balance Sheet'!H$24 -> 100532.9995 | I50: =$M50*'Strategic - Balance Sheet'!I$24 -> 101866.3457 | J50: =$M50*'Strategic - Balance Sheet'!J$24 -> 103479.2924 | K50: =$M50*'Strategic - Balance Sheet'!K$24 -> 104795.3241 | L50: =$M50*'Strategic - Balance Sheet'!L$24 -> 105995.755 | M50: 0.09957890711
B51: - Other Structures | C51: =$M51*'Standard - balance sheet'!C$24 -> 3436.805516 | D51: =$M51*'Strategic - Balance Sheet'!D$24 -> 3582.118822 | E51: =$M51*'Strategic - Balance Sheet'!E$24 -> 3640.507233 | F51: =$M51*'Strategic - Balance Sheet'!F$24 -> 3696.308596 | G51: =$M51*'Strategic - Balance Sheet'!G$24 -> 3764.02555 | H51: =$M51*'Strategic - Balance Sheet'!H$24 -> 3827.368438 | I51: =$M51*'Strategic - Balance Sheet'!I$24 -> 3878.129949 | J51: =$M51*'Strategic - Balance Sheet'!J$24 -> 3939.536068 | K51: =$M51*'Strategic - Balance Sheet'!K$24 -> 3989.638407 | L51: =$M51*'Strategic - Balance Sheet'!L$24 -> 4035.339732 | M51: 0.003791045408
B52: - Roads | C52: =$M52*'Standard - balance sheet'!C$24 -> 407593.2796 | D52: =$M52*'Strategic - Balance Sheet'!D$24 -> 424826.9365 | E52: =$M52*'Strategic - Balance Sheet'!E$24 -> 431751.6006 | F52: =$M52*'Strategic - Balance Sheet'!F$24 -> 438369.4498 | G52: =$M52*'Strategic - Balance Sheet'!G$24 -> 446400.4469 | H52: =$M52*'Strategic - Balance Sheet'!H$24 -> 453912.6949 | I52: =$M52*'Strategic - Balance Sheet'!I$24 -> 459932.8351 | J52: =$M52*'Strategic - Balance Sheet'!J$24 -> 467215.389 | K52: =$M52*'Strategic - Balance Sheet'!K$24 -> 473157.3536 | L52: =$M52*'Strategic - Balance Sheet'!L$24 -> 478577.373 | M52: 0.4496049089
B53: - Bridges | C53: =$M53*'Standard - balance sheet'!C$24 -> 11417.75933 | D53: =$M53*'Strategic - Balance Sheet'!D$24 -> 11900.51936 | E53: =$M53*'Strategic - Balance Sheet'!E$24 -> 12094.49741 | F53: =$M53*'Strategic - Balance Sheet'!F$24 -> 12279.88077 | G53: =$M53*'Strategic - Balance Sheet'!G$24 -> 12504.85011 | H53: =$M53*'Strategic - Balance Sheet'!H$24 -> 12715.28793 | I53: =$M53*'Strategic - Balance Sheet'!I$24 -> 12883.92788 | J53: =$M53*'Strategic - Balance Sheet'!J$24 -> 13087.93136 | K53: =$M53*'Strategic - Balance Sheet'!K$24 -> 13254.38141 | L53: =$M53*'Strategic - Balance Sheet'!L$24 -> 13406.2104 | M53: 0.01259461551
B54: - Footpaths | C54: =$M54*'Standard - balance sheet'!C$24 -> 28872.45547 | D54: =$M54*'Strategic - Balance Sheet'!D$24 -> 30093.22631 | E54: =$M54*'Strategic - Balance Sheet'!E$24 -> 30583.74485 | F54: =$M54*'Strategic - Balance Sheet'!F$24 -> 31052.5297 | G54: =$M54*'Strategic - Balance Sheet'!G$24 -> 31621.41692 | H54: =$M54*'Strategic - Balance Sheet'!H$24 -> 32153.55779 | I54: =$M54*'Strategic - Balance Sheet'!I$24 -> 32580.00307 | J54: =$M54*'Strategic - Balance Sheet'!J$24 -> 33095.87324 | K54: =$M54*'Strategic - Balance Sheet'!K$24 -> 33516.78084 | L54: =$M54*'Strategic - Balance Sheet'!L$24 -> 33900.7157 | M54: 0.03184840958
B55: - Stormwater Drainage | C55: =$M55*'Standard - balance sheet'!C$24 -> 193092.212 | D55: =$M55*'Strategic - Balance Sheet'!D$24 -> 201256.4412 | E55: =$M55*'Strategic - Balance Sheet'!E$24 -> 204536.9141 | F55: =$M55*'Strategic - Balance Sheet'!F$24 -> 207672.0373 | G55: =$M55*'Strategic - Balance Sheet'!G$24 -> 211476.6216 | H55: =$M55*'Strategic - Balance Sheet'!H$24 -> 215035.455 | I55: =$M55*'Strategic - Balance Sheet'!I$24 -> 217887.421 | J55: =$M55*'Strategic - Balance Sheet'!J$24 -> 221337.4397 | K55: =$M55*'Strategic - Balance Sheet'!K$24 -> 224152.3711 | L55: =$M55*'Strategic - Balance Sheet'!L$24 -> 226720.0374 | M55: 0.2129946953
B56: - Other Open Space/Recreational Assets | C56: =$M56*'Standard - balance sheet'!C$24 -> 21523.29005 | D56: =$M56*'Strategic - Balance Sheet'!D$24 -> 22433.32713 | E56: =$M56*'Strategic - Balance Sheet'!E$24 -> 22798.98957 | F56: =$M56*'Strategic - Balance Sheet'!F$24 -> 23148.45041 | G56: =$M56*'Strategic - Balance Sheet'!G$24 -> 23572.53365 | H56: =$M56*'Strategic - Balance Sheet'!H$24 -> 23969.22393 | I56: =$M56*'Strategic - Balance Sheet'!I$24 -> 24287.12226 | J56: =$M56*'Strategic - Balance Sheet'!J$24 -> 24671.68336 | K56: =$M56*'Strategic - Balance Sheet'!K$24 -> 24985.45357 | L56: =$M56*'Strategic - Balance Sheet'!L$24 -> 25271.66204 | M56: 0.02374174783
B57: - Other Infrastructure | C57: =$M57*'Standard - balance sheet'!C$24 -> 5799.159621 | D57: =$M57*'Strategic - Balance Sheet'!D$24 -> 6044.356812 | E57: =$M57*'Strategic - Balance Sheet'!E$24 -> 6142.879616 | F57: =$M57*'Strategic - Balance Sheet'!F$24 -> 6237.037115 | G57: =$M57*'Strategic - Balance Sheet'!G$24 -> 6351.300614 | H57: =$M57*'Strategic - Balance Sheet'!H$24 -> 6458.183449 | I57: =$M57*'Strategic - Balance Sheet'!I$24 -> 6543.836858 | J57: =$M57*'Strategic - Balance Sheet'!J$24 -> 6647.451649 | K57: =$M57*'Strategic - Balance Sheet'!K$24 -> 6731.992791 | L57: =$M57*'Strategic - Balance Sheet'!L$24 -> 6809.107796 | M57: 0.006396893089
B59: Asset Maintenance Ratio | C59: =C60/C61 -> 0.8870141025 | D59: 0.8788019341 | E59: 0.8930253456 | F59: 0.9213520133 | G59: 0.9459052017 | H59: 0.9723305326 | I59: 0.991944951 | J59: 1.016500527 | K59: 1.039546173 | L59: 1.067198834
B60: Actual Asset Maintenance | C60: =C64 -> 10682.31084 | D60: =D64 -> 11030.89426 | E60: 11392.14261 | F60: 11933.65673 | G60: 12476.13042 | H60: 13040.49041 | I60: 13479.99274 | J60: 14032.41496 | K60: 14533.05944 | L60: 15090.55371
B61: Required Asset Maintenance | C61: =C70 -> 12043 | D61: =D70 -> 12552.19615 | E61: 12756.79651 | F61: 12952.33153 | G61: 13189.62027 | H61: 13411.58174 | I61: 13589.45648 | J61: 13804.63126 | K61: 13980.19618 | L61: 14140.33938
B63: Numerator:
B64: Actual Asset Maintenance | C64: =C66*C67 -> 10682.31084 | D64: 11030.89426 | E64: 11392.14261 | F64: 11933.65673 | G64: 12476.13042 | H64: 13040.49041 | I64: 13479.99274 | J64: 14032.41496 | K64: 14533.05944 | L64: 15090.55371
C66: 85458.4867 | D66: 88247.15406 | E66: 91137.1409 | F66: 95469.25382 | G66: 99809.04338 | H66: 104323.9233 | I66: 107839.9419 | J66: 112259.3196 | K66: 116264.4755 | L66: 120724.4297 | M66: <<< total salaries and materials (not including NAP)
C67: 0.125 | D67: 0.125 | E67: 0.125 | F67: 0.125 | G67: 0.125 | H67: 0.125 | I67: 0.125 | J67: 0.125 | K67: 0.125 | L67: 0.125 | M67: <<< per centage for asset maintenance
B69: Denominator:
B70: Required Asset Maintenance | C70: =SUM(C71:C76) -> 12043 | D70: =SUM(D71:D76) -> 12552.19615 | E70: 12756.79651 | F70: 12952.33153 | G70: 13189.62027 | H70: 13411.58174 | I70: 13589.45648 | J70: 13804.63126 | K70: 13980.19618 | L70: 14140.33938
B71: - Roads | C71: 5168 | D71: =D52*$M$71 -> 5386.510813 | E71: =E52*$M$71 -> 5474.31075 | F71: 5558.220487 | G71: 5660.047958 | H71: 5755.298051 | I71: 5831.629251 | J71: 5923.966982 | K71: 5999.306971 | L71: 6068.029057 | M71: =C71/C52 -> 0.01267930621
B72: - Other structures | C72: 202 | D72: =D51*$M$72 -> 210.5408638 | E72: =E51*$M$72 -> 213.9726725 | F72: 217.2524261 | G72: 221.2325247 | H72: 224.9555353 | I72: 227.939069 | J72: 231.548245 | K72: 234.4930356 | L72: 237.1791543 | M72: =C72/C51 -> 0.05877551088
B73: - Stormwater Drainage | C73: 1220 | D73: =D55*$M$73 -> 1271.583435 | E73: =E55*$M$73 -> 1292.3102 | F73: 1312.118613 | G73: 1336.156832 | H73: 1358.642342 | I73: 1376.661704 | J73: 1398.459698 | K73: 1416.245067 | L73: 1432.46816 | M73: =C73/C55 -> 0.006318224786
B74: - Other infrastrcuture | C74: 35 | D74: =D57*$M$74 -> 36.47985264 | E74: =E57*$M$74 -> 37.07447296 | F74: 37.6427471 | G74: 38.33236814 | H74: 38.97744423 | I74: 39.49439315 | J74: 40.11974543 | K74: 40.62998142 | L74: 41.09539803 | M74: =C74/C57 -> 0.006035357239
B75: - Other Open Space/Recreational Assets | C75: 3843 | D75: =D56*$M$75 -> 4005.48782 | E75: =E56*$M$75 -> 4070.777131 | F75: 4133.173632 | G75: 4208.894022 | H75: 4279.723376 | I75: 4336.484368 | J75: 4405.148048 | K75: 4461.17196 | L75: 4512.274703 | M75: =C75/C56 -> 0.1785507695
B76: - Buidlings | C76: 1575 | D76: =D50*$M$76 -> 1641.593369 | E76: =E50*$M$76 -> 1668.351283 | F76: 1693.92362 | G76: 1724.956566 | H76: 1753.98499 | I76: 1777.247692 | J76: 1805.388544 | K76: 1828.349164 | L76: 1849.292911 | M76: =C76/C50 -> 0.01744685823
B77: - Depreciable Land Improvement Assets

Sheet Strategic - graphs
B7: Graphs - Strategic Scenario - Consolidated
B72: Special Schedule 7 Graphs - Strategic Scenario - Consolidated
